Workbook

Sheet READ ME FIRST
B2: In order | C2: CT.SD.W Version 1.0.2 8-22-20
B3: READ ME FIRST | C3: Quick map to get started.
B5: (1) BUILD | C5: The core worksheet. This is where you actually design your Adventure-class ship, from 100 to 5,000 tons.
B7: (2) TURRETS | C7: This is where you fill out the turrets and weapons you bought on the BUILD worksheet.
B9: (3a) QUICKINFO | C9: This summarizes your ship design, allowing you a quick view to either select the cells you want to print and then fit them on paper or in a PDF if you print to PDF.
B11: (3b) SOFTWARE | C11: This is a quick reference for the software you bought on the BUILD worksheet.
B13: NOTE | C13: This workbook with its various worksheets was laid out at 1920 x 1080 resolution. You'll have to fiddle with the worksheet magnification if you use a different size monitor.
B15: There is a 5-page help guide that goes through each step of the design worksheet.
B17: For feedback
B18: Ronald Stepp
B19: morituri.max@gmail.com
B21: Change Log
B22: 1.0.1 8-22-20 | C22: Fixed an error where Long Term Fuel Reserves from Step 8 were not being deducted from available tonnage.
C23: Also fixed some residual extra missiles and sand cannisters left on sheet.
C24: Fixed some cat feet debris in a couple "empty" fields.
B25: 1.0.2 8-22-20 | C25: Fixed an error where only the first 25 of 50 turrets were seen.
B26: 1.0.2jd 9-17-20 | C26: Eagle eyed facebook member Timothy Salisbury spotted that I was showing the Jump number as maneuver number in the PDF.
B31: Issues
C32: Might need to fiddle with build time to take into account precedence of Standard vs Custom vs Jump/Maneuver/Plant build
C33: times. Right now (1.0.1) build times seem to be slightly inconsistent.

Sheet BUILD
C2: Ship Descriptive Name | G2: ENTER SHIP DESCRIPTIVE NAME | AF2: Type | AG2: TYPE CODE | AJ2: CT.SD.W | AL2: 8wk
AJ3: V1.0.2jd 9-17-20 | AL3: YES
C4: STEP 1. Select Hull Size | AI4: Tons Remaining | AJ4: Total Cost | AL4: 4wk
E5: Standard Hull Sizes | AF5: Tons | AG5: MCr | AH5: Build Time | AL5: NO
C6: Tonnage | F6: RESET TO ZERO | G6: =BUILDDATA!AK5 -> 5 | J6: =BUILDDATA!AK11 -> 35 | M6: =BUILDDATA!AK17 -> 65 | P6: =BUILDDATA!AK24 -> ( 100 ) | S6: =BUILDDATA!AK29 -> 600 | V6: =BUILDDATA!AK33 -> ( 1000 ) | Z6: Standard Design | AF6: =BUILDDATA!E38 -> 1,100.000 | AG6: =IF(AL12="YES",VLOOKUP(shipTonnage,HULLTABLE,2,1),0.1*shipTonnage) -> 110.000 | AH6: =IF(AL12="YES",VLOOKUP(shipTonnage,HULLTABLE,3,1),E16) -> 32 | AI6: =remainingTons -> 982.000 | AJ6: =IF(standard="YES",standardCost,totalCost) -> 318.6550
C7: =BUILDDATA!E38 -> 1,100.000 | E7: 100 | G7: =BUILDDATA!AK6 -> 10 | J7: =BUILDDATA!AK12 -> 40 | M7: =BUILDDATA!AK18 -> 70 | P7: =BUILDDATA!AK25 -> 200 | S7: =BUILDDATA!AK30 -> 700 | V7: =BUILDDATA!AK34 -> 2000
E8: 200 | G8: =BUILDDATA!AK7 -> 15 | J8: =BUILDDATA!AK13 -> 45 | M8: =BUILDDATA!AK19 -> 75 | P8: =BUILDDATA!AK26 -> 300 | S8: =BUILDDATA!AK31 -> 800 | V8: =BUILDDATA!AK35 -> 3000 | Z8: =AL8 -> NO | AF8: 8 weeks | AG8: Click to switch plans | AL8: NO
C9: Cost (MCr) | E9: 400 | G9: =BUILDDATA!AK8 -> 20 | J9: =BUILDDATA!AK14 -> 50 | M9: =BUILDDATA!AK20 -> 80 | P9: =BUILDDATA!AK27 -> 400 | S9: =BUILDDATA!AK32 -> 900 | V9: =BUILDDATA!AK36 -> 4000 | Z9: click to toggle | AF9: Plans
C10: =IF(standard="YES",standardCost,totalCost) -> 318.6550 | E10: 600 | G10: =BUILDDATA!AK9 -> 25 | J10: =BUILDDATA!AK15 -> 55 | M10: =BUILDDATA!AK21 -> 85 | P10: =BUILDDATA!AK28 -> 500 | V10: =BUILDDATA!AK37 -> 5000 | Z10: STANDARD HULL SIZE | AF10: 4 weeks
E11: 800 | G11: =BUILDDATA!AK10 -> 30 | J11: =BUILDDATA!AK16 -> 60 | M11: =BUILDDATA!AK22 -> 90
E12: 1,000 | M12: =BUILDDATA!AK23 -> 95 | Z12: =AL12 -> NO | AF12: 10% | AL12: =IF(OR(shipTonnage=100,shipTonnage=200,shipTonnage=400,shipTonnage=600,shipTonnage=800,shipTonnage=1000),"YES","NO") -> NO
G13: click to select hull tonnages, values are cumulative | AF13: Discount 10% to 40%
C14: STEP 2. Select Drives. | AF14: for Standard Hull Sizes | AI14: Tons Remaining | AJ14: Total Cost | AL14: Selected
E15: Build Time | G15: A | H15: B | I15: C | J15: D | K15: E | L15: F | M15: G | N15: H | O15: J | P15: K | Q15: L | R15: M | S15: N | T15: P | U15: Q | V15: R | W15: S | X15: T | Y15: U | Z15: V | AA15: W | AB15: X | AC15: Y | AD15: Z | AF15: Tons | AG15: MCr | AL15: index (0-25) | AM15: Letter
C16: Jump | D16: 1 | E16: =BUILDDATA!AD38 -> 32 | F16: NONE | G16: =_xlfn.IFNA(BUILDDATA!F38,0) -> 0 | H16: =_xlfn.IFNA(BUILDDATA!G38,0) -> 0 | I16: =_xlfn.IFNA(BUILDDATA!H38,0) -> 0 | J16: =_xlfn.IFNA(BUILDDATA!I38,0) -> 0 | K16: =_xlfn.IFNA(BUILDDATA!J38,0) -> 0 | L16: =_xlfn.IFNA(BUILDDATA!K38,0) -> 0 | M16: =_xlfn.IFNA(BUILDDATA!L38,0) -> 0 | N16: =_xlfn.IFNA(BUILDDATA!M38,0) -> 0 | O16: =_xlfn.IFNA(BUILDDATA!N38,0) -> 1 | P16: =_xlfn.IFNA(BUILDDATA!O38,0) -> 1 | Q16: =_xlfn.IFNA(BUILDDATA!P38,0) -> 1 | R16: =_xlfn.IFNA(BUILDDATA!Q38,0) -> 1 | S16: =_xlfn.IFNA(BUILDDATA!R38,0) -> 1 | T16: =_xlfn.IFNA(BUILDDATA!S38,0) -> 1 | U16: =_xlfn.IFNA(BUILDDATA!T38,0) -> 1 | V16: =_xlfn.IFNA(BUILDDATA!U38,0) -> 1 | W16: =_xlfn.IFNA(BUILDDATA!V38,0) -> 1 | X16: =_xlfn.IFNA(BUILDDATA!W38,0) -> 1 | Y16: =_xlfn.IFNA(BUILDDATA!X38,0) -> 1 | Z16: =_xlfn.IFNA(BUILDDATA!Y38,0) -> 2 | AA16: =_xlfn.IFNA(BUILDDATA!Z38,0) -> 2 | AB16: =_xlfn.IFNA(BUILDDATA!AA38,0) -> 3 | AC16: =_xlfn.IFNA(BUILDDATA!AB38,0) -> 4 | AD16: =_xlfn.IFNA(BUILDDATA!AC38,0) -> 6 | AF16: =_xlfn.IFNA(VLOOKUP(AM16,JMPTABLE,2,1),0) -> 50.000 | AG16: =_xlfn.IFNA(VLOOKUP(AM16,JMPTABLE,3,1),0) -> 90.000 | AI16: =remainingTons -> 982.000 | AJ16: =IF(standard="YES",standardCost,totalCost) -> 318.6550 | AL16: 9 | AM16: J
C17: Maneuver | D17: 1 | E17: =BUILDDATA!AD38 -> 32 | F17: NONE | G17: =_xlfn.IFNA(BUILDDATA!F38,0) -> 0 | H17: =_xlfn.IFNA(BUILDDATA!G38,0) -> 0 | I17: =_xlfn.IFNA(BUILDDATA!H38,0) -> 0 | J17: =_xlfn.IFNA(BUILDDATA!I38,0) -> 0 | K17: =_xlfn.IFNA(BUILDDATA!J38,0) -> 0 | L17: =_xlfn.IFNA(BUILDDATA!K38,0) -> 0 | M17: =_xlfn.IFNA(BUILDDATA!L38,0) -> 0 | N17: =_xlfn.IFNA(BUILDDATA!M38,0) -> 0 | O17: =_xlfn.IFNA(BUILDDATA!N38,0) -> 1 | P17: =_xlfn.IFNA(BUILDDATA!O38,0) -> 1 | Q17: =_xlfn.IFNA(BUILDDATA!P38,0) -> 1 | R17: =_xlfn.IFNA(BUILDDATA!Q38,0) -> 1 | S17: =_xlfn.IFNA(BUILDDATA!R38,0) -> 1 | T17: =_xlfn.IFNA(BUILDDATA!S38,0) -> 1 | U17: =_xlfn.IFNA(BUILDDATA!T38,0) -> 1 | V17: =_xlfn.IFNA(BUILDDATA!U38,0) -> 1 | W17: =_xlfn.IFNA(BUILDDATA!V38,0) -> 1 | X17: =_xlfn.IFNA(BUILDDATA!W38,0) -> 1 | Y17: =_xlfn.IFNA(BUILDDATA!X38,0) -> 1 | Z17: =_xlfn.IFNA(BUILDDATA!Y38,0) -> 2 | AA17: =_xlfn.IFNA(BUILDDATA!Z38,0) -> 2 | AB17: =_xlfn.IFNA(BUILDDATA!AA38,0) -> 3 | AC17: =_xlfn.IFNA(BUILDDATA!AB38,0) -> 4 | AD17: =_xlfn.IFNA(BUILDDATA!AC38,0) -> 6 | AF17: =_xlfn.IFNA(VLOOKUP(AM17,JMPTABLE,4,1),0) -> 17.000 | AG17: =_xlfn.IFNA(VLOOKUP(AM17,JMPTABLE,5,1),0) -> 36.000 | AL17: 9 | AM17: J
C18: Power | D18: 1 | E18: =BUILDDATA!AD38 -> 32 | F18: NONE | G18: =_xlfn.IFNA(BUILDDATA!F38,0) -> 0 | H18: =_xlfn.IFNA(BUILDDATA!G38,0) -> 0 | I18: =_xlfn.IFNA(BUILDDATA!H38,0) -> 0 | J18: =_xlfn.IFNA(BUILDDATA!I38,0) -> 0 | K18: =_xlfn.IFNA(BUILDDATA!J38,0) -> 0 | L18: =_xlfn.IFNA(BUILDDATA!K38,0) -> 0 | M18: =_xlfn.IFNA(BUILDDATA!L38,0) -> 0 | N18: =_xlfn.IFNA(BUILDDATA!M38,0) -> 0 | O18: =_xlfn.IFNA(BUILDDATA!N38,0) -> 1 | P18: =_xlfn.IFNA(BUILDDATA!O38,0) -> 1 | Q18: =_xlfn.IFNA(BUILDDATA!P38,0) -> 1 | R18: =_xlfn.IFNA(BUILDDATA!Q38,0) -> 1 | S18: =_xlfn.IFNA(BUILDDATA!R38,0) -> 1 | T18: =_xlfn.IFNA(BUILDDATA!S38,0) -> 1 | U18: =_xlfn.IFNA(BUILDDATA!T38,0) -> 1 | V18: =_xlfn.IFNA(BUILDDATA!U38,0) -> 1 | W18: =_xlfn.IFNA(BUILDDATA!V38,0) -> 1 | X18: =_xlfn.IFNA(BUILDDATA!W38,0) -> 1 | Y18: =_xlfn.IFNA(BUILDDATA!X38,0) -> 1 | Z18: =_xlfn.IFNA(BUILDDATA!Y38,0) -> 2 | AA18: =_xlfn.IFNA(BUILDDATA!Z38,0) -> 2 | AB18: =_xlfn.IFNA(BUILDDATA!AA38,0) -> 3 | AC18: =_xlfn.IFNA(BUILDDATA!AB38,0) -> 4 | AD18: =_xlfn.IFNA(BUILDDATA!AC38,0) -> 6 | AF18: =_xlfn.IFNA(VLOOKUP(AM18,JMPTABLE,6,1),0) -> 28.000 | AG18: =_xlfn.IFNA(VLOOKUP(AM18,JMPTABLE,7,1),0) -> 72.000 | AL18: 9 | AM18: J
F19: click to toggle select drives
C23: STEP 3. Fuel Tankage. | AI23: Tons Remaining | AJ23: Total Cost
AF24: Tons | AH24: Total Weeks
C25: Any yellowish field allows data entry | AA25: Power Plant and Maneuver (Number of Weeks x 4) | AC25: 0 | AF25: =10*D18*AC25 -> 0.000 | AH25: =AC25*4 -> 0 | AI25: =remainingTons -> 982.000 | AJ25: =IF(standard="YES",standardCost,totalCost) -> 318.6550
AH26: Total Jumps
AA27: ="Number of Jump-"& D16 &" jumps" -> Number of Jump-1 jumps | AC27: 0 | AF27: =0.1*AF6*D16*AC27 -> 0.000 | AH27: =AC27 -> 0
C32: STEP 4. Bridge. | AI32: Tons Remaining | AJ32: Total Cost
AF33: Tons | AG33: MCr
AI34: =remainingTons -> 982.000 | AJ34: =IF(standard="YES",standardCost,totalCost) -> 318.6550
AA35: Standard Bridge | AF35: =IF(shipTonnage>0,IF(0.02*AF6<20,20,0.02*AF6),0) -> 22.000 | AG35: =0.5*(AF6/100) -> 5.500
C37: STEP 5. Computer | AA37: Computer Model | AL37: Selected | AM37: 0 | AN37: 1 | AO37: 2 | AP37: 3 | AQ37: 4 | AR37: 5 | AS37: 6 | AT37: 7 | AU37: 8 | AV37: 9
G38: NONE | J38: 1 | L38: 1bis | N38: 2 | P38: 2bis | R38: 3 | T38: 4 | V38: 5 | X38: 6 | Z38: 7 | AF38: =_xlfn.IFNA(VLOOKUP(AL38,COMPTABLE,2,0),0) -> 1.000 | AG38: =_xlfn.IFNA(VLOOKUP(AL38,COMPTABLE,3,0),0) -> 2.000 | AL38: 1 | AM38: NONE | AN38: 1 | AO38: 1bis | AP38: 2 | AQ38: 2bis | AR38: 3 | AS38: 4 | AT38: 5 | AU38: 6 | AV38: 7
G39: click to select desired computer model | AU39: Space | BB39: Cost
V40: Space | Y40: MCr | AG40: Capacity | AH40: =_xlfn.IFNA(VLOOKUP(AL38,COMPTABLE,4,0)&" / "&VLOOKUP(AL38,COMPTABLE,5,0),"") -> 2 / 4 | AL40: NONE | AM40: 1 | AN40: 2 | AO40: 3 | AP40: 4 | AQ40: 5 | AR40: 6 | AT40: SUM | AU40: 1 | AV40: 2 | AW40: 3 | AX40: 4 | AY40: 5 | AZ40: 6 | BB40: 1 | BC40: 2 | BD40: 3 | BE40: 4 | BF40: 5 | BG40: 6 | BI40: 1 | BJ40: 2 | BK40: 3 | BL40: 4 | BM40: 5 | BN40: 6
E41: Predict | F41: 1 to 5 | G41: NONE | J41: 1 | L41: 2 | N41: 3 | P41: 4 | R41: 5 | V41: =SUM(AU41:AZ41) -> 0 | Y41: =SUM(BB41:BG41) -> 0.000 | AG41: Tech Level | AH41: =_xlfn.IFNA(VLOOKUP(AL38,COMPTABLE,6,0),"") -> 5 | AL41: NONE | AM41: 0 | AN41: 0 | AO41: 0 | AP41: 0 | AQ41: 0 | AR41: 0 | AT41: =SUM(AM41:AQ41) -> 0 | AU41: =IF(AM41>0,1,0) -> 0 | AV41: =IF(AN41>0,2,0) -> 0 | AW41: =IF(AO41>0,1,0) -> 0 | AX41: =IF(AP41>0,3,0) -> 0 | AY41: =IF(AQ41>0,2,0) -> 0 | BB41: =IF(AM41>0,2,0) -> 0 | BC41: =IF(AN41>0,4,0) -> 0 | BD41: =IF(AO41>0,6,0) -> 0 | BE41: =IF(AP41>0,8,0) -> 0 | BF41: =IF(AQ41>0,10,0) -> 0 | BH41: Predict 1-5 | BI41: =IF(AM41>0,"X","") ->  | BJ41: =IF(AN41>0,"X","") -> 
E42: Gunner Interact | G42: NONE | J42: 1 | V42: =SUM(AU42:AZ42) -> 0 | Y42: =SUM(BB42:BG42) -> 0.000 | AG42: Software Credit (MCr) | AH42: =_xlfn.IFNA(VLOOKUP(AL38,COMPTABLE,7,0),0) -> 1.000 | AL42: NONE | AM42: 0 | AN42: 0 | AO42: 0 | AP42: 0 | AQ42: 0 | AR42: 0 | AT42: =SUM(AM42:AQ42) -> 0 | AU42: =IF(AM42>0,1,0) -> 0 | BB42: =IF(AM42>0,1,0) -> 0 | BH42: Gunner Interact 1 | BI42: =IF(AM42>0,"X","") -> 
E43: Target | G43: NONE | J43: 1 | V43: 0 | Y43: 0.000 | AL43: NONE | AM43: 0 | AN43: 0 | AO43: 0 | AP43: 0 | AQ43: 0 | AR43: 0 | AT43: 0 | AU43: =IF(AM43>0,1,0) -> 0 | BB43: =IF(AM43>0,1,0) -> 0 | BH43: Target 1 | BI43: =IF(AM43>0,"X","") -> 
C44: Offensive | E44: Selective | F44: 1 to 3 | G44: NONE | J44: 1 | L44: 2 | N44: 3 | V44: 0 | Y44: 0.000 | AL44: NONE | AM44: 0 | AN44: 0 | AO44: 0 | AP44: 0 | AQ44: 0 | AR44: 0 | AT44: 0 | AU44: =IF(AM44>0,1,0) -> 0 | AV44: =IF(AN44>0,2,0) -> 0 | AW44: =IF(AO44>0,1,0) -> 0 | BB44: =IF(AM44>0,0.5,0) -> 0 | BC44: =IF(AN44>0,0.8,0) -> 0 | BD44: =IF(AO44>0,1,0) -> 0 | BH44: Selective 3 | BI44: =IF(AM44>0,"X","") ->  | BJ44: =IF(AN44>0,"X","") ->  | BK44: =IF(AO44>0,"X","") -> 
E45: Multi-target | F45: 2 to 4 | G45: NONE | L45: 2 | N45: 3 | P45: 4 | V45: 0 | Y45: 0.000 | AL45: NONE | AM45: 0 | AN45: 0 | AO45: 0 | AP45: 0 | AQ45: 0 | AR45: 0 | AT45: 0 | AV45: =IF(AN45>0,1,0) -> 0 | AW45: =IF(AO45>0,2,0) -> 0 | AX45: =IF(AP45>0,4,0) -> 0 | BC45: =IF(AN45>0,1,0) -> 0 | BD45: =IF(AO45>0,2,0) -> 0 | BE45: =IF(AP45>0,3,0) -> 0 | BH45: Multi-target 2-4 | BL45: =IF(AP45>0,"X","") -> 
E46: Launch | G46: NONE | J46: 1 | V46: 0 | Y46: 0.000 | AL46: NONE | AM46: 0 | AN46: 0 | AO46: 0 | AP46: 0 | AQ46: 0 | AR46: 0 | AT46: 0 | AU46: =IF(AM46>0,1,0) -> 0 | BB46: =IF(AM46>0,2,0) -> 0 | BH46: Launch 1 | BI46: =IF(AM46>0,"X","") -> 
E47: Double Fire | G47: NONE | J47: 1 | V47: 0 | Y47: 0.000 | AL47: NONE | AM47: 0 | AN47: 0 | AO47: 0 | AP47: 0 | AQ47: 0 | AR47: 0 | AT47: 0 | AU47: =IF(AM47>0,4,0) -> 0 | BB47: =IF(AM47>0,4,0) -> 0 | BH47: Double Fire 1 | BI47: =IF(AM47>0,"X","") -> 
E48: Maneuver/Evade | F48: 1 to 6 | G48: NONE | J48: 1 | L48: 2 | N48: 3 | P48: 4 | R48: 5 | T48: 6 | V48: 0 | Y48: 0.000 | AL48: NONE | AM48: 0 | AN48: 0 | AO48: 0 | AP48: 0 | AQ48: 0 | AR48: 0 | AT48: 0 | AU48: =IF(AM48>0,1,0) -> 0 | AV48: =IF(AN48>0,2,0) -> 0 | AW48: =IF(AO48>0,3,0) -> 0 | AX48: =IF(AP48>0,4,0) -> 0 | AY48: =IF(AQ48>0,2,0) -> 0 | AZ48: =IF(AR48>0,3,0) -> 0 | BB48: =IF(AM48>0,1,0) -> 0 | BC48: =IF(AN48>0,2,0) -> 0 | BD48: =IF(AO48>0,3,0) -> 0 | BE48: =IF(AP48>0,4,0) -> 0 | BF48: =IF(AQ48>0,5,0) -> 0 | BG48: =IF(AR48>0,6,0) -> 0 | BH48: Maneuver/Evade 1-6 | BI48: =IF(AM48>0,"X","") -> 
E49: Auto/Evade | G49: NONE | J49: 1 | V49: =SUM(AU49:AZ49) -> 0 | Y49: =SUM(BB49:BG49) -> 0.000 | AL49: NONE | AM49: 0 | AN49: 0 | AO49: 0 | AP49: 0 | AQ49: 0 | AR49: 0 | AT49: 0 | AU49: =IF(AM49>0,1,0) -> 0 | BB49: =IF(AM49>0,0.5,0) -> 0 | BH49: Auto/Evade 1 | BI49: =IF(AM49>0,"X","") -> 
C50: Defensive | E50: Return Fire | G50: NONE | J50: 1 | V50: 0 | Y50: 0.000 | AL50: NONE | AM50: 0 | AN50: 0 | AO50: 0 | AP50: 0 | AQ50: 0 | AR50: 0 | AT50: 0 | AU50: =IF(AM50>0,1,0) -> 0 | BB50: =IF(AM50>0,0.5,0) -> 0 | BH50: Return Fire 1 | BI50: =IF(AM50>0,"X","") -> 
E51: Anti-Missile | G51: NONE | J51: 1 | V51: 0 | Y51: 0.000 | AL51: NONE | AM51: 0 | AN51: 0 | AO51: 0 | AP51: 0 | AQ51: 0 | AR51: 0 | AT51: 0 | AU51: =IF(AM51>0,2,0) -> 0 | BB51: =IF(AM51>0,1,0) -> 0 | BH51: Anti-Missile 1 | BI51: =IF(AM51>0,"X","") -> 
E52: ECM | G52: NONE | J52: 1 | V52: 0 | Y52: 0.000 | AL52: NONE | AM52: 0 | AN52: 0 | AO52: 0 | AP52: 0 | AQ52: 0 | AR52: 0 | AT52: 0 | AU52: =IF(AM52>0,3,0) -> 0 | BB52: =IF(AM52>0,4,0) -> 0 | BH52: ECM 1 | BI52: =IF(AM52>0,"X","") -> 
E53: Maneuver | G53: NONE | J53: 1 | V53: 0 | Y53: 0.000 | AL53: NONE | AM53: 0 | AN53: 0 | AO53: 0 | AP53: 0 | AQ53: 0 | AR53: 0 | AT53: 0 | AU53: =IF(AM53>0,1,0) -> 0 | BB53: =IF(AM53>0,0.1,0) -> 0 | BH53: Maneuver 1 | BI53: =IF(AM53>0,"X","") -> 
E54: Jump | F54: 1 to 6 | G54: NONE | J54: 1 | L54: 2 | N54: 3 | P54: 4 | R54: 5 | T54: 6 | V54: 0 | Y54: 0.000 | AL54: NONE | AM54: 0 | AN54: 0 | AO54: 0 | AP54: 0 | AQ54: 0 | AR54: 0 | AT54: 0 | AU54: 0 | AV54: =IF(AN54>0,2,0) -> 0 | AW54: =IF(AO54>0,3,0) -> 0 | AX54: =IF(AP54>0,4,0) -> 0 | AY54: =IF(AQ54>0,5,0) -> 0 | AZ54: =IF(AR54>0,6,0) -> 0 | BB54: =IF(AM54>0,0.1,0) -> 0 | BC54: =IF(AN54>0,0.33,0) -> 0 | BD54: =IF(AO54>0,0.4,0) -> 0 | BE54: =IF(AP54>0,0.5,0) -> 0 | BF54: =IF(AQ54>0,0.6,0) -> 0 | BG54: =IF(AR54>0,0.7,0) -> 0 | BH54: Jump 1-6 | BI54: =IF(AM54>0,"X","") ->  | BJ54: =IF(AN54>0,"X","") ->  | BK54: =IF(AO54>0,"X","") ->  | BL54: =IF(AP54>0,"X","") ->  | BM54: =IF(AQ54>0,"X","") ->  | BN54: =IF(AR54>0,"X","") -> 
E55: Navigation | G55: NONE | J55: 1 | V55: 0 | Y55: 0.000 | AL55: NONE | AM55: 0 | AN55: 0 | AO55: 0 | AP55: 0 | AQ55: 0 | AR55: 0 | AT55: 0 | AU55: 0 | BB55: =IF(AM55>0,0.4,0) -> 0 | BH55: Navigation 1 | BI55: =IF(AM55>0,"X","") -> 
C56: Routine | E56: Differentiate | F56: 1 to 3 | G56: NONE | J56: 1 | L56: 2 | N56: 3 | V56: 0 | Y56: 0.000 | AL56: NONE | AM56: 0 | AN56: 0 | AO56: 0 | AP56: 0 | AQ56: 0 | AR56: 0 | AT56: 0 | AU56: 0 | AV56: =IF(AN56>0,2,0) -> 0 | AW56: =IF(AO56>0,3,0) -> 0 | BB56: =IF(AM56>0,0.5,0) -> 0 | BC56: =IF(AN56>0,0.6,0) -> 0 | BD56: =IF(AO56>0,0.7,0) -> 0 | BH56: Differentiate 1-3 | BI56: =IF(AM56>0,"X","") ->  | BJ56: =IF(AN56>0,"X","") ->  | BK56: =IF(AO56>0,"X","") -> 
E57: Generate | G57: NONE | J57: 1 | V57: 0 | Y57: 0.000 | AF57: Required CPU Space | AL57: NONE | AM57: 0 | AN57: 0 | AO57: 0 | AP57: 0 | AQ57: 0 | AR57: 0 | AT57: 0 | AU57: 0 | BB57: =IF(AM57>0,0.8,0) -> 0 | BH57: Generate 1 | BI57: =IF(AM57>0,"X","") -> 
E58: Anti-Hijack | G58: NONE | J58: 1 | V58: 0 | Y58: 0.000 | AF58: Space | AG58: MCr | AL58: NONE | AM58: 0 | AN58: 0 | AO58: 0 | AP58: 0 | AQ58: 0 | AR58: 0 | AT58: 0 | AU58: 0 | BB58: =IF(AM58>0,0.1,0) -> 0 | BH58: Anti-Hijack 1 | BI58: =IF(AM58>0,"X","") -> 
E59: Library | G59: NONE | J59: 1 | V59: 0 | Y59: 0.000 | AF59: =SUM(V41:X59) -> 0 | AG59: =IF(AL62<0,0,AL62) -> 0.000 | AL59: NONE | AM59: 0 | AN59: 0 | AO59: 0 | AP59: 0 | AQ59: 0 | AR59: 0 | AT59: 0 | AU59: 0 | BB59: =IF(AM59>0,0.3,0) -> 0 | BH59: Library 1 | BI59: =IF(AM59>0,"X","") -> 
G60: click to select desired software packages
AL61: Total after bonus
AL62: =SUM(Y41:AA59)-AH42 -> -1.000
C63: STEP 6. Accommodations. | AI63: Tons Remaining | AJ63: Total Cost
AF64: Tons | AG64: MCr
R65: STEP 11 allows accurate tracking of numbers of staterooms, low berths | AI65: =remainingTons -> 982.000 | AJ65: =IF(standard="YES",standardCost,totalCost) -> 318.6550
N66: Recommended Staterooms | P66: =AL161 -> 0 | AA66: Stateroom | AC66: 0 | AF66: =AC66*4 -> 0.000 | AG66: =0.5*AC66 -> 0.000
N67: Recommended Low Berths | P67: =AL163 -> 0 | AA67: Low Berth | AC67: 0 | AF67: =AC67*0.5 -> 0.000 | AG67: =0.05*AC67 -> 0.000
R68: An Emergency Low Berth can accommodate four sophonts with no frills. | AA68: Emergency Low Berth | AC68: 0 | AF68: =AC68*1 -> 0.000 | AG68: =0.1*AC68 -> 0.000
AA69: Small Craft Stateroom | AC69: 0 | AF69: =AC69*2 -> 0.000 | AG69: =0.05*AC69 -> 0.000
AA70: Small Craft Couch | AC70: 0 | AF70: =AC70*0.5 -> 0.000 | AG70: =0.025*AC70 -> 0.000
AA71: Morse Hyper/13 | AC71: 0 | AF71: =4*AC71 -> 0.000 | AG71: =16*AC71 -> 0.000
AA72: Morse Hyper/14 | AC72: 0 | AF72: =4*AC72 -> 0.000 | AG72: =1.5*16*AC72 -> 0.000
AA73: Morse Hyper/15 | AC73: 0 | AF73: =4*AC73 -> 0.000 | AG73: =2*16*AC73 -> 0.000
AA74: Morse Hyper/13 (core) | AC74: 0 | AF74: =1*AC74 -> 0.000 | AG74: =1.5*AC74 -> 0.000
AA75: Morse Hyper/14 (core) | AC75: 0 | AF75: =1*AC75 -> 0.000 | AG75: =1.5*1.5*AC75 -> 0.000
AA76: Morse Hyper/15 (core) | AC76: 0 | AF76: =1*AC76 -> 0.000 | AG76: =2*1.5*AC76 -> 0.000
C78: STEP 7. Armament. | AI78: Tons Remaining | AJ78: Total Cost
AF79: Tons | AG79: MCr
E80: See TURRETS worksheet for weapon layout. | AI80: =remainingTons -> 982.000 | AJ80: =IF(standard="YES",standardCost,totalCost) -> 318.6550
AA81: Maximum Hardpoints | AC81: =AF6/100 -> 11
AA82: Installed Hardpoints | AC82: 0 | AG82: =0.1*AC82 -> 0.000
AA83: Fire Control | AC83: 0 | AF83: =1*AC83 -> 0.000 | AG83: 0.000
Q84: Total Weapons to fill Turrets | AA84: Single Turret | AC84: 0 | AG84: =0.2*AC84 -> 0.000
O85: =sinTurret+(duoTurret*2)+(triTurret*3) -> 0 | AA85: Double Turret | AC85: 0 | AG85: =0.5*AC85 -> 0.000
AA86: Triple Turret | AC86: 0 | AG86: =1*AC86 -> 0.000
Q87: 0.50 MCr each | AA87: Pulse Laser | AC87: 0 | AG87: =0.5*AC87 -> 0.000
Q88: 1.00 MCr each | AA88: Beam Laser | AC88: 0 | AG88: =1*AC88 -> 0.000
Q89: 0.75 MCr each | AA89: Missile Rack | AC89: 0 | AG89: =0.75*AC89 -> 0.000
Q90: 0.25 MCr each | AA90: Sandcaster | AC90: 0 | AG90: =0.25*AC90 -> 0.000
Q92: 0.005 MCr each | Z92: Extra Missiles | AB92: 0 | AF92: =0.05*AB92 -> 0.000 | AG92: =0.005*AB92 -> 0.000
Q93: 0.0004 MCr each | Z93: Extra Sand Cannisters | AB93: 0 | AF93: =0.05*AB93 -> 0.000 | AG93: =0.0004*AB93 -> 0.000
C96: STEP 8. Vehicles. | AI96: Tons Remaining | AJ96: Total Cost
F97: Tonnage of Cutter is 20 tons without modules | S97: Dedicated | AF97: Tons | AG97: MCr | AH97: Fuel (tons) | AM97: Max
F98: Fuel module masses 30 tons | S98: Crew | U98: Min | AI98: =remainingTons -> 982.000 | AJ98: =IF(standard="YES",standardCost,totalCost) -> 318.6550 | AM98: =COUNTIF(AM99:AM114,"V") -> 0
F99: ATV module masses 30 tons | Q99: V | S99: 0 | U99: =AC99 -> 0 | AA99: ATV | AC99: 0 | AF99: =10*AC99 -> 0.000 | AG99: =0.03*AC99 -> 0.000 | AM99: =IF(AC99>0,"V","") ->  | AN99: =IF(AND(AM99="V",AM99<>""),COUNTIF(AM99,"V"),"") ->  | AO99: =IF(AND(maxvslots>1,AN99=$AM$98)," and ","") ->  | AP99: =IF(AC99=1," an "& AA99,IF(AC99>1,VLOOKUP(AC99,oneHundred,2,1)&" "& AA99 & "s","")) ->  | AQ99: =IF(AN99<$AM$98,", ",IF(AN99=$AM$98,".","")) -> 
F100: Open module masses 30 tons | Q100: V | S100: 0 | U100: =AC100 -> 0 | AA100: Air/Raft | AC100: 0 | AF100: =4*AC100 -> 0.000 | AG100: =0.6*AC100 -> 0.000 | AJ100: grand total reserve tons | AL100: =IF(SUM(AC101:AD106)+SUM(AC111:AD119)=0,"and a","") -> and a | AM100: =IF(AC100>0,"V","") ->  | AN100: =IF(AND(AM100="V",AM100<>""),COUNTIF($AM$99:AM100,"V"),"") ->  | AP100: =IF(AC100=1," an "& AA100,IF(AC100>1,VLOOKUP(AC100,oneHundred,2,1)&" "& AA100 & "s","")) ->  | AQ100: =IF(AN100<$AM$98,", ",IF(AN100=$AM$98,".","")) -> 
E101: Standard Cutters include 0 modules | J101: Extra weeks of fuel | Q101: V | S101: 0 | U101: =AC101 -> 0 | AA101: Speeder | AC101: 0 | AF101: =6*AC101 -> 0.000 | AG101: =1*AC101 -> 0.000 | AJ101: =SUM(AJ103:AJ114)+(O116*K116) -> 0.00 | AN101: =IF(AND(AM101="V",AM101<>""),COUNTIF($AM$99:AM101,"V"),"") ->  | AP101: =IF(AC101=1," a "& AA101,IF(AC101>1,VLOOKUP(AC101,oneHundred,2,1)&" "& AA101 & "s","")) -> 
E102: ATV Module includes an ATV | Q102: V | S102: 0 | U102: =AC102 -> 0 | AA102: GCarrier | AC102: 0 | AF102: =8*AC102 -> 0.000 | AG102: =1*AC102 -> 0.000 | AH102: per 4 weeks | AJ102: individual fuel reserve tons | AN102: =IF(AND(AM102="V",AM102<>""),COUNTIF($AM$99:AM102,"V"),"") ->  | AP102: =IF(AC102=1," a "& AA102,IF(AC102>1,VLOOKUP(AC102,oneHundred,2,1)&" "& AA102 & "s","")) -> 
I103: Launch | K103: 0 | Q103: SC | S103: 0 | U103: =2*AC103 -> 0 | AA103: Launch | AC103: 0 | AF103: =(20*AC103)+((K103/4)*AH103) -> 0.000 | AG103: =14*AC103 -> 0.000 | AH103: 1.00 | AJ103: =(K103/4)*AH103 -> 0.00 | AN103: =IF(AND(AM103="V",AM103<>""),COUNTIF($AM$99:AM103,"V"),"") ->  | AP103: =IF(AC103=1," a 20-ton "& AA103,IF(AC103>1,VLOOKUP(AC103,oneHundred,2,1)&" 20-ton "& AA103 & "es","")) -> 
E104: V=Vehicle | I104: Ship's Boat | K104: 0 | Q104: SC | S104: 0 | U104: =2*AC104 -> 0 | AA104: Ship's Boat | AC104: 0 | AF104: =(30*AC104)+((K104/4)*AH104) -> 0.000 | AG104: =16*AC104 -> 0.000 | AH104: 1.80 | AJ104: =(K104/4)*AH104 -> 0.00 | AN104: =IF(AND(AM104="V",AM104<>""),COUNTIF($AM$99:AM104,"V"),"") ->  | AP104: =IF(AC104=1," a 30-ton "& AA104,IF(AC104>1,VLOOKUP(AC104,oneHundred,2,1)&" 30-ton "& AA104 & "s","")) -> 
E105: SC=Small Craft | I105: Pinnace | K105: 0 | Q105: SC | S105: 0 | U105: =2*AC105 -> 0 | AA105: Pinnace | AC105: 0 | AF105: =(40*AC105)+((K105/4)*AH105) -> 0.000 | AG105: =20*AC105 -> 0.000 | AH105: 2.00 | AJ105: =(K105/4)*AH105 -> 0.00 | AN105: =IF(AND(AM105="V",AM105<>""),COUNTIF($AM$99:AM105,"V"),"") ->  | AP105: =IF(AC105=1," a 40-ton "& AA105,IF(AC105>1,VLOOKUP(AC105,oneHundred,2,1)&" 40-ton "& AA105 & "s","")) -> 
I106: Cutter | K106: 0 | Q106: SC | S106: 0 | U106: =2*AC106 -> 0 | AA106: Cutter | AC106: 0 | AF106: =(20*AC106)+((K106/4)*AH106) -> 0.000 | AG106: =28*AC106 -> 0.000 | AH106: 2.00 | AJ106: =(K106/4)*AH106 -> 0.00 | AN106: =IF(AND(AM106="V",AM106<>""),COUNTIF($AM$99:AM106,"V"),"") ->  | AP106: =IF(AC106=1," a 50-ton "& AA106,IF(AC106>1,VLOOKUP(AC106,oneHundred,2,1)&" 50-ton "& AA106 & "s","")) -> 
I107: Fuel Module | K107: 0 | AA107: Fuel Module | AC107: 0 | AF107: =(30*AC107)+((K107/4)*AH107) -> 0.000 | AG107: =1*AC107 -> 0.000 | AH107: 30.00 | AJ107: =(K107/4)*AH107 -> 0.00 | AM107: =IF(AC107>0,"V","") ->  | AN107: =IF(AND(AM107="V",AM107<>""),COUNTIF($AM$99:AM107,"V"),"") ->  | AP107: =IF(AC107=1," a "& AA107,IF(AC107>1,VLOOKUP(AC107,oneHundred,2,1)&" "& AA107 & "s","")) ->  | AQ107: =IF(AN107<$AM$98,", ",IF(AN107=$AM$98,".","")) -> 
AA108: ATV Module | AC108: 0 | AF108: =30*AC108 -> 0.000 | AG108: =1.8*AC108 -> 0.000 | AN108: =IF(AND(AM108="V",AM108<>""),COUNTIF($AM$99:AM108,"V"),"") ->  | AP108: =IF(AC108=1," an "& AA108,IF(AC108>1,VLOOKUP(AC108,oneHundred,2,1)&" "& AA108 & "s","")) -> 
AA109: Open Module | AC109: 0 | AF109: =30*AC109 -> 0.000 | AG109: =2*AC109 -> 0.000 | AN109: =IF(AND(AM109="V",AM109<>""),COUNTIF($AM$99:AM109,"V"),"") ->  | AP109: =IF(AC109=1," an "& AA109,IF(AC109>1,VLOOKUP(AC109,oneHundred,2,1)&" "& AA109 & "s","")) -> 
Q110: 0 cost, placeholder item | AA110: Provision for future modules | AC110: 0 | AF110: =30*AC110 -> 0.000 | AG110: =0 -> 0.000 | AH110: per 4 weeks | AJ110: individual fuel reserve tons
I111: Slow Boat | K111: 0 | Q111: SC | S111: 0 | U111: =2*AC111 -> 0 | AA111: Slow Boat | AC111: 0 | AF111: =(30*AC111)+((K111/4)*AH111) -> 0.000 | AG111: =15*AC111 -> 0.000 | AH111: 1.00 | AJ111: =(K111/4)*AH111 -> 0.00 | AM111: =IF(AC111>0,"V","") ->  | AN111: =IF(AND(AM111="V",AM111<>""),COUNTIF($AM$99:AM111,"V"),"") ->  | AP111: =IF(AC111=1," a 30-ton "& AA111,IF(AC111>1,VLOOKUP(AC111,oneHundred,2,1)&" 30-ton "& AA111 & "s","")) ->  | AQ111: =IF(AN111<$AM$98,", ",IF(AN111=$AM$98,".","")) -> 
I112: Slow Pinnace | K112: 0 | Q112: SC | S112: 0 | U112: =2*AC112 -> 0 | AA112: Slow Pinnace | AC112: 0 | AF112: =(40*AC112)+((K112/4)*AH112) -> 0.000 | AG112: =18*AC112 -> 0.000 | AH112: 1.00 | AJ112: =(K112/4)*AH112 -> 0.00 | AN112: =IF(AND(AM112="V",AM112<>""),COUNTIF($AM$99:AM112,"V"),"") ->  | AP112: =IF(AC112=1," a 40-ton "& AA112,IF(AC112>1,VLOOKUP(AC112,oneHundred,2,1)&" 40-ton "& AA112 & "s","")) -> 
I113: Shuttle | K113: 0 | Q113: SC | S113: 0 | U113: =2*AC113 -> 0 | AA113: Shuttle | AC113: 0 | AF113: =(95*AC113)+((K113/4)*AH113) -> 0.000 | AG113: =33*AC113 -> 0.000 | AH113: 2.85 | AJ113: =(K113/4)*AH113 -> 0.00 | AN113: =IF(AND(AM113="V",AM113<>""),COUNTIF($AM$99:AM113,"V"),"") ->  | AP113: =IF(AC113=1," a 95-ton "& AA113,IF(AC113>1,VLOOKUP(AC113,oneHundred,2,1)&" 95-ton "& AA113 & "s","")) -> 
I114: Fighter | K114: 0 | Q114: SC | S114: 0 | U114: =1*AC114 -> 0 | AA114: Fighter | AC114: 0 | AF114: =(10*AC114)+((K114/4)*AH114) -> 0.000 | AG114: =18*AC114 -> 0.000 | AH114: 1.00 | AJ114: =(K114/4)*AH114 -> 0.00 | AN114: =IF(AND(AM114="V",AM114<>""),COUNTIF($AM$99:AM114,"V"),"") ->  | AP114: =IF(AC114=1," a 10-ton "& AA114,IF(AC114>1,VLOOKUP(AC114,oneHundred,2,1)&" 10-ton "& AA114 & "s","")) -> 
S115: Dedicated | AH115: can change the | AJ115: long term fuel reserve
I116: Long Term Fuel Reserves | K116: 0 | O116: 0 | S116: Crew | AH116: values above | AJ116: =K116*O116 -> 0.00
N117: Weekly use (tons) | AH117: if desired
AP120: =_xlfn.CONCAT(AO99,AP99,AQ99,AO100,AP100,AQ100,AO101,AP101,AQ101,AO102,AP102,AQ102,AO103,AP103,AQ103,AO104,AP104,AQ104,AO105,AP105,AQ105,AO106,AP106,AQ106,AO107,AP107,AQ107,AO108,AP108,AQ108,AO109,AP109,AQ109,AO111,AP111,AQ111,AO112,AP112,AQ112,AO113,AP113,AQ113,AO114,AP114,AQ114) -> 
C121: STEP 9. Cargo Capacity. | AI121: Tons Remaining | AJ121: Total Cost
AF122: Tons | AM122: Cargo Bays
AI123: =remainingTons -> 982.000 | AJ123: =IF(standard="YES",standardCost,totalCost) -> 318.6550 | AM123: =COUNTIF(AA124:AD128,">0") -> 0
Y124: Cargo Bay 1 | AA124: 0.000 | AF124: =AA124 -> 0.000 | AM124: =IF(AA124>0,"BAY","") ->  | AN124: =IF(AND(AM124="BAY",AM124<>""),COUNTIF(AM124,"BAY"),"") ->  | AO124: =IF(AND(cargobays>1,AN124=$AM$123)," and ","") ->  | AP124: =IF(AA124>0," a " & IF(cargobays=1," single ","") & AA124 & "-ton bay","") ->  | AQ124: =IF(AN124<$AM$123,", ",IF(AN124=$AM$123,".","")) -> 
Y125: Cargo Bay 2 | AA125: 0.000 | AF125: =AA125 -> 0.000 | AM125: =IF(AA125>0,"BAY","") ->  | AN125: =IF(AND(AM125="BAY",AM125<>""),COUNTIF($AM$124:AM125,"BAY"),"") ->  | AO125: =IF(AND(cargobays>1,AN125=$AM$123)," and ","") ->  | AP125: =IF(AA125>0," a " & IF(cargobays=1," single ","") & AA125 & "-ton bay","") ->  | AQ125: =IF(AN125<$AM$123,", ",IF(AN125=$AM$123,".","")) -> 
Y126: Cargo Bay 3 | AA126: 0.000 | AF126: =AA126 -> 0.000 | AN126: =IF(AND(AM126="BAY",AM126<>""),COUNTIF($AM$124:AM126,"BAY"),"") ->  | AO126: =IF(AND(cargobays>1,AN126=$AM$123)," and ","") ->  | AP126: =IF(AA126>0," a " & IF(cargobays=1," single ","") & AA126 & "-ton bay","") -> 
Y127: Cargo Bay 4 | AA127: 0.000 | AF127: =AA127 -> 0.000 | AN127: =IF(AND(AM127="BAY",AM127<>""),COUNTIF($AM$124:AM127,"BAY"),"") ->  | AO127: =IF(AND(cargobays>1,AN127=$AM$123)," and ","") ->  | AP127: =IF(AA127>0," a " & IF(cargobays=1," single ","") & AA127 & "-ton bay","") -> 
Y128: Cargo Bay 5 | AA128: 0.000 | AF128: =AA128 -> 0.000 | AN128: =IF(AND(AM128="BAY",AM128<>""),COUNTIF($AM$124:AM128,"BAY"),"") ->  | AO128: =IF(AND(cargobays>1,AN128=$AM$123)," and ","") ->  | AP128: =IF(AA128>0," a " & IF(cargobays=1," single ","") & AA128 & "-ton bay","") -> 
C130: STEP 10. Streamlining | AI130: Tons Remaining | AJ130: Total Cost | AP130: =_xlfn.CONCAT(AO124,AP124,AQ124,AO125,AP125,AQ125,AO126,AP126,AQ126,AO127,AP127,AQ127,AO128,AP128,AQ128) -> 
AG131: MCr | AL131: streamlined
AA132: streamlining | AI132: =remainingTons -> 982.000 | AJ132: =IF(standard="YES",standardCost,totalCost) -> 318.6550 | AL132: NO
AB133: =streaming -> NO | AG133: =IF(AL132="YES",INT(0.5+(AF6/100)),0) -> 0.000 | AL133: exclude luxury
AA134: click to toggle | AL134: NO
AL135: total turrets
AA136: Exclude Luxury | AL136: =SUM(AC84:AD86) -> 0
Z137: Exclude Luxury Staterooms from Double Occupancy | AB137: =luxury -> NO | AL137: total drives
AA138: click to toggle | AL138: =SUM(AF16:AF18) -> 95.000
C139: ="ship's tonnage is " & TEXT(shipTonnage,"#,####") & " tons." -> ship's tonnage is 1,100 tons. | K139: Occupancy | T139: Worksheet for Step 6 | AL139: total crew | AM139: Crew | AT139: Crew
C140: STEP 11. Crew. | K140: x1 | M140: x0.5 | O140: x2 | Q140: x1 | T140: Staterooms | Z140: Low Berths | AF140: ="Crew = " & SUM(E142:E154) -> Crew = 0 | AL140: =SUM(E142:E153) -> 0 | AM140: Sections | AS140: Difference | AT140: Can be added
E141: Filled | F141: Min | G141: Add | K141: S | M141: D | O141: LUX | Q141: LOW | T141: Need | V141: Installed | Z141: Need | AB141: Installed | AL141: additional crew | AM141: =COUNTIF(E142:E154,">0") -> 0 | AN141: Actual required present crew | AT141: =COUNTIF(AS142:AS154,">0") -> 9 | AU141: Crew that can be added later to max out positions
C142: Captain | D142: L | E142: 0 | F142: =IF(shipTonnage>=1000,1,0) -> 1.0 | T142: =IF(K142>0,K142,0)+IF(M142>0,M142/2,0)+IF(O142>0,2*O142,0) -> 0.0 | W142: 0 | Z142: =IF(Q142>0,Q142,0) -> 0 | AC142: 0 | AF142: Unallocated Staterooms was added to correctly calculate double occupancy of passengers if any are taken on at some point. | AL142: =SUM(AS142:AS153) -> 22 | AM142: =IF(E142>0,"CREW","") ->  | AN142: =IF(AND(AM142="CREW",AM142<>""),COUNTIF(AM142,"CREW"),"") ->  | AO142: =IF(AND(totalFSections>1,AN142=$AM$141)," and ","") ->  | AP142: =IF(E142>0,IF(E142=1,C142,IF(E142>1,VLOOKUP(E142,oneHundred,2,1) & " " & C142 & "s","")),"") ->  | AQ142: =IF(AN142<totalFSections,", ",IF(AN142=totalFSections,".","")) ->  | AS142: =INT(F142)-E142 -> 1 | AT142: =IF(AS142>0,"CREW","") -> CREW | AU142: =IF(AND(AT142="CREW",AT142<>""),COUNTIF(AT142,"CREW"),"") -> 1 | AV142: =IF(AND(AT141>1,AU142=$AT$141)," and ","") ->  | AW142: =IF(AS142>0,IF(AS142=1,C142,IF(AS142>1,VLOOKUP(AS142,oneHundred,2,1) & " " & C142 & "s","")),"") -> Captain | AX142: =IF(AU142<$AT$141,", ",IF(AU142=$AT$141,".","")) -> , | BB142: =IF(K142>0,"Single="&K142,"") ->  | BC142: =IF(M142>0,"Double="&M142,"") ->  | BD142: =IF(O142>0,"Luxury="&O142,"") ->  | BE142: =IF(Q142>0,"Low="&Q142,"") ->  | BF142: =SUBSTITUTE(TRIM(BB142&" "&BC142&" "&BD142&" "&BE142)," ",", ") ->  | BG142: =IFERROR(SUBSTITUTE(BF142,","," and",LEN(BF142)-LEN(SUBSTITUTE(BF142,",",""))),BF142) -> 
B143: or | C143: Commanding Officer | D143: L | E143: 0 | F143: =IF(shipTonnage>=1000,1,0) -> 1.0 | T143: =IF(K143>0,K143,0)+IF(M143>0,M143/2,0)+IF(O143>0,2*O143,0) -> 0.0 | W143: 0 | Z143: =IF(Q143>0,Q143,0) -> 0 | AC143: 0 | AL143: total small craft | AM143: =IF(E143>0,"CREW","") ->  | AN143: =IF(AND(AM143="CREW",AM143<>""),COUNTIF($AM$142:AM143,"CREW"),"") ->  | AS143: =INT(F143)-E143 -> 1 | AT143: =IF(AS143>0,"CREW","") -> CREW | AU143: =IF(AND(AT143="CREW",AT143<>""),COUNTIF($AT$142:AT143,"CREW"),"") -> 2 | AV143: =IF(AND(AT142>1,AU143=$AT$141)," and ","") ->  | AW143: Commanding Officer | AX143: =IF(AU143<$AT$141,", ",IF(AU143=$AT$141,".","")) -> , | BB143: =IF(K143>0,"Single="&K143,"") ->  | BC143: =IF(M143>0,"Double="&M143,"") ->  | BD143: =IF(O143>0,"Luxury="&O143,"") ->  | BE143: =IF(Q143>0,"Low="&Q143,"") ->  | BF143: =SUBSTITUTE(TRIM(BB143&" "&BC143&" "&BD143&" "&BE143)," ",", ") ->  | BG143: =IFERROR(SUBSTITUTE(BF143,","," and",LEN(BF143)-LEN(SUBSTITUTE(BF143,",",""))),BF143) -> 
C144: Executive Officer | D144: L | E144: 0 | F144: =IF(shipTonnage>=1000,1,0) -> 1.0 | T144: 0.0 | W144: 0 | Z144: 0 | AC144: 0 | AL144: =SUM(AC99:AD106)+SUM(AC111:AD114) -> 0 | AN144: =IF(AND(AM144="CREW",AM144<>""),COUNTIF($AM$142:AM144,"CREW"),"") ->  | AS144: 1 | AT144: CREW | AU144: =IF(AND(AT144="CREW",AT144<>""),COUNTIF($AT$142:AT144,"CREW"),"") -> 3 | AW144: Executive Officer | AX144: ,
C145: Admin Rating | D145: L | E145: 0 | F145: =IF(shipTonnage>=1000,3,0) -> 3.0 | G145: 0 | T145: 0.0 | W145: 0 | Z145: 0 | AC145: 0 | AL145: total high passengers | AN145: =IF(AND(AM145="CREW",AM145<>""),COUNTIF($AM$142:AM145,"CREW"),"") ->  | AS145: 3 | AT145: CREW | AU145: =IF(AND(AT145="CREW",AT145<>""),COUNTIF($AT$142:AT145,"CREW"),"") -> 4 | AW145: three Admin Ratings | AX145: ,
C146: Crew Rating | D146: L | E146: 0 | F146: =IF(shipTonnage>=1000,(shipTonnage/1000)*10,0) -> 11.0 | G146: 0 | T146: 0.0 | W146: 0 | Z146: 0 | AC146: 0 | AF146: Filled = active crew positions on the ship. | AL146: =SUM(E156:E158) -> 0 | AN146: =IF(AND(AM146="CREW",AM146<>""),COUNTIF($AM$142:AM146,"CREW"),"") ->  | AS146: 11 | AT146: CREW | AU146: =IF(AND(AT146="CREW",AT146<>""),COUNTIF($AT$142:AT146,"CREW"),"") -> 5 | AW146: eleven Crew Ratings | AX146: ,
C147: Pilot | D147: S | E147: 0 | F147: 1.0 | G147: 0 | T147: 0.0 | W147: 0 | Z147: 0 | AC147: 0 | AF147: Min = recommended crew positions by ship size or | AL147: total low passengers | AN147: =IF(AND(AM147="CREW",AM147<>""),COUNTIF($AM$142:AM147,"CREW"),"") ->  | AS147: 1 | AT147: CREW | AU147: =IF(AND(AT147="CREW",AT147<>""),COUNTIF($AT$142:AT147,"CREW"),"") -> 6 | AW147: Pilot | AX147: ,
C148: Navigator | D148: S | E148: 0 | F148: =IF(shipTonnage>=200, 1,"na") -> 1.0 | G148: 0 | T148: 0.0 | W148: 0 | Z148: 0 | AC148: 0 | AF148: system. | AL148: =E159 -> 0 | AN148: =IF(AND(AM148="CREW",AM148<>""),COUNTIF($AM$142:AM148,"CREW"),"") ->  | AS148: 1 | AT148: CREW | AU148: =IF(AND(AT148="CREW",AT148<>""),COUNTIF($AT$142:AT148,"CREW"),"") -> 7 | AW148: Navigator | AX148: ,
C149: Engineer | D149: S | E149: 0 | F149: =IF(shipTonnage>=200,(AL138/35),"na") -> 2.7 | G149: 0 | T149: 0.0 | W149: 0 | Z149: 0 | AC149: 0 | AF149: Add = note to designer for possible additional crew. | AL149: all passengers | AN149: =IF(AND(AM149="CREW",AM149<>""),COUNTIF($AM$142:AM149,"CREW"),"") ->  | AS149: 2 | AT149: CREW | AU149: =IF(AND(AT149="CREW",AT149<>""),COUNTIF($AT$142:AT149,"CREW"),"") -> 8 | AW149: two Engineers | AX149: ,
C150: Steward | D150: S | E150: 0 | F150: =IF((AL146/8)>0,(AL146/8),0) -> 0.0 | G150: 0 | T150: 0.0 | W150: 0 | Z150: 0 | AC150: 0 | AF150: S,D,LUX,LOW = number and size of staterooms needed | AL150: =SUM(E156:E159) -> 0 | AN150: =IF(AND(AM150="CREW",AM150<>""),COUNTIF($AM$142:AM150,"CREW"),"") ->  | AS150: 0 | AU150: =IF(AND(AT150="CREW",AT150<>""),COUNTIF($AT$142:AT150,"CREW"),"") -> 
C151: Medic | D151: S | E151: 0 | F151: =IF(shipTonnage>=200,1,0)+(AL150/120) -> 1.0 | G151: 0 | T151: 0.0 | W151: 0 | Z151: 0 | AC151: 0 | AF151: for that crew position. | AL151: total vehicles | AN151: =IF(AND(AM151="CREW",AM151<>""),COUNTIF($AM$142:AM151,"CREW"),"") ->  | AS151: 1 | AT151: CREW | AU151: =IF(AND(AT151="CREW",AT151<>""),COUNTIF($AT$142:AT151,"CREW"),"") -> 9 | AV151: and | AW151: Medic | AX151: .
C152: Gunner | D152: S | E152: 0 | F152: =IF(AL136>0,AL136,0) -> 0.0 | G152: 0 | T152: 0.0 | W152: 0 | Z152: 0 | AC152: 0 | AF152: Installed = Actual Staterooms or Low Berths needed. | AL152: =SUM(AC99:AD106)+SUM(AC111:AD119) -> 0 | AN152: =IF(AND(AM152="CREW",AM152<>""),COUNTIF($AM$142:AM152,"CREW"),"") ->  | AS152: 0 | AU152: =IF(AND(AT152="CREW",AT152<>""),COUNTIF($AT$142:AT152,"CREW"),"") -> 
C153: Troop | D153: L | E153: 0 | F153: 0.0 | G153: 0 | T153: 0.0 | W153: 0 | Z153: 0 | AC153: 0 | AF153: Step 6 is where they are actually purchased for the ship. | AL153: total cargo | AN153: =IF(AND(AM153="CREW",AM153<>""),COUNTIF($AM$142:AM153,"CREW"),"") ->  | AS153: 0 | AU153: =IF(AND(AT153="CREW",AT153<>""),COUNTIF($AT$142:AT153,"CREW"),"") -> 
C154: Dedicated V/SC Pilot | D154: S | E154: =SUM(S99:T106,S111:T114) -> 0 | F154: =SUM(U99:V114) -> 0.0 | G154: 0 | T154: 0.0 | W154: 0 | Z154: 0 | AC154: 0 | AF154: This line's blue FILLED/MIN values are taken from STEP 8. | AL154: =SUM(AA124:AD128) -> 0.000 | AM154: =IF(E154>0,"CREW","") ->  | AN154: =IF(AND(AM154="CREW",AM154<>""),COUNTIF($AM$142:AM154,"CREW"),"") ->  | AS154: =INT(F154)-E154 -> 0 | AU154: =IF(AND(AT154="CREW",AT154<>""),COUNTIF($AT$142:AT154,"CREW"),"") ->  | AV154: =IF(AND(AT153>1,AU154=$AT$141)," and ","") ->  | AX154: =IF(AU154<$AT$141,", ",IF(AU154=$AT$141,".","")) -> 
C155: Unallocated Staterooms | D155: P | E155: 0 | G155: 0 | T155: =IF(K155>0,K155,0)+IF(M155>0,M155/2,0)+IF(O155>0,2*O155,0) -> 0.0 | W155: 0 | Z155: 0 | AC155: 0 | BB155: =IF(K155>0,"Single="&K155,"") ->  | BC155: =IF(M155>0,"Double="&M155,"") ->  | BD155: =IF(O155>0,"Luxury="&O155,"") ->  | BE155: =IF(Q155>0,"Low="&Q155,"") ->  | BF155: =SUBSTITUTE(TRIM(BB155&" "&BC155&" "&BD155&" "&BE155)," ",", ") ->  | BG155: =IFERROR(SUBSTITUTE(BF155,","," and",LEN(BF155)-LEN(SUBSTITUTE(BF155,",",""))),BF155) -> 
C156: Luxury High or Middle | D156: P | E156: 0 | T156: =IF(K156>0,K156,0)+IF(M156>0,M156/2,0)+IF(O156>0,2*O156,0) -> 0.0 | W156: 0 | Z156: =IF(Q156="Y",E156,"") ->  | AF156: NOTE: Filling in all the fields will allow the worksheet | AL156: large ship crew | BB156: =IF(K156>0,"Single="&K156,"") ->  | BC156: =IF(M156>0,"Double="&M156,"") ->  | BD156: =IF(O156>0,"Luxury="&O156,"") ->  | BE156: =IF(Q156>0,"Low="&Q156,"") ->  | BF156: =SUBSTITUTE(TRIM(BB156&" "&BC156&" "&BD156&" "&BE156)," ",", ") ->  | BG156: =IFERROR(SUBSTITUTE(BF156,","," and",LEN(BF156)-LEN(SUBSTITUTE(BF156,",",""))),BF156) -> 
C157: Standard High or Middle | D157: P | E157: 0 | T157: 0.0 | W157: 0 | AF157: to accurately figure out passenger double occupancy. | AL157: =SUM(E142:E146)+E153 -> 0
C158: Economy High or Middle | D158: P | E158: 0 | T158: 0.0 | W158: 0 | AL158: small crew
C159: Low Passengers | D159: P | E159: 0 | Z159: =IF(Q159>0,Q159,0) -> 0 | AC159: 0 | AL159: =SUM(E147:E152) -> 0
C160: Total High/Medium Passengers at Normal Occupancy | G160: =SUM(E156:E158) -> 0 | V160: =SUM(W142:X158) -> 0 | AB160: =SUM(AC142:AD159) -> 0 | AL160: reccom. staterooms
C161: Total High/Medium Passengers at Double Occupancy | G161: =((V160-IF(luxury="YES",W156,0))*2)-SUM(K142:N154) -> 0 | V161: Total | AB161: Total | AL161: =V160 -> 0
AE162: L=Large Ship Crew, S=Small Ship Crew, P=Passengers | AL162: reccom. low berths
C163: Occupancy: S=Single, D=Double, LUX=Luxury (Two Staterooms), Low=Low Berth | AL163: =AB160 -> 0
C165: For engineers, stewards, medics, and gunners, the highest skilled is chief of section and paid 10% more.
C166: One person may fill two positions, but each is performed at their skill level - 1. Salary equals 75% of both positions combined. | AI166: Tons Remaining | AJ166: Total Cost
C168: E N D O F D E S I G N A R E A | AI168: =remainingTons -> 982.000 | AJ168: =IF(standard="YES",standardCost,totalCost) -> 318.6550

Sheet TURRETS
AH1: S | AI1: 1 | AJ1: =D7 -> 0 | AO1: Total Turrets
AH2: D | AI2: 2 | AJ2: =E7 -> 0 | AO2: =SUM(AO7:AO56) -> 0 | AQ2: S | AR2: single
B3: TURRET LAYOUT SHEET | AH3: T | AI3: 3 | AJ3: =F7 -> 0 | AO3: Unique Groups | AQ3: D | AR3: double | AU3: Total Cost
B4: Ship Tons | C4: =shipTonnage -> 1,100 | H4: M=Mod A, B, or C for Missiles or Sandcasters | X4: Used for the checks | AE4: num | AF4: num | AG4: turret | AH4: turret | AO4: =COUNTIF(AO7:AO56,">0") -> 0 | AQ4: T | AR4: triple | AU4: =SUM(AU7:AU56) -> 0.00
B5: Hardpoints | C5: =hardpointsOn -> 0 | D5: Turrets (T) | H5: Mod B or C only available for Missiles or Sandcasters | AE5: ck | AF5: ck | AG5: ck | AH5: ck
D6: Single | E6: Double | F6: Triple | H6: HP | I6: T | J6: PL | K6: BL | L6: MR | M6: SC | N6: M | O6: HP | P6: T | Q6: PL | R6: BL | S6: MR | T6: SC | U6: M | X6: HP | Y6: T | Z6: PL | AA6: BL | AB6: MR | AC6: SC | AD6: sum | AE6: over | AF6: under | AG6: over | AH6: under | AL6: HP | AM6: Comp | AN6: Unique | AO6: Amt | AP6: Type | AQ6: P | AR6: B | AS6: M | AT6: S | AU6: Cost (MCr) | AZ6: PL | BA6: BL | BB6: MR | BC6: SC
D7: =sinTurret -> 0 | E7: =duoTurret -> 0 | F7: =triTurret -> 0 | H7: 1 | O7: 26 | X7: 1 | Y7: =I7 -> 0 | Z7: =J7 -> 0 | AA7: =K7 -> 0 | AB7: =L7 -> 0 | AC7: =M7 -> 0 | AD7: =SUM(Z7:AC7) -> 0 | AE7: =IFERROR(IF(AD7>VLOOKUP(Y7,checktsum,2,0),"F"&Y7,"G"),"G") -> G | AF7: =IFERROR(IF(AD7<VLOOKUP(Y7,checktsum,2,0),"F"&Y7,"G"),"G") -> G | AJ7: ="I7" -> I7 | AL7: 1 | AM7: =IF(I7="","x",I7) & IF(J7="","xx","P"&J7) & IF(K7="","xx","B"&K7) & IF(L7="","xx","M"&L7) & IF(M7="","xx","S"&M7) -> xxxxxxxxx | AN7: =IFERROR(INDEX(turretList, MATCH(0,COUNTIF($AN$6:AN6, turretList), 0)),"") -> xxxxxxxxx | AO7: =IF(LEFT(AN7,1)<>"x",COUNTIF(turretList,AN7),0) -> 0 | AP7: =IF(AO7>0,LEFT(AN7,1),"") ->  | AQ7: =IFERROR(VALUE(MID(AN7,3,1)),"") ->  | AR7: =IFERROR(VALUE(MID(AN7,5,1)),"") ->  | AS7: =IFERROR(VALUE(MID(AN7,7,1)),"") ->  | AT7: =IFERROR(VALUE(MID(AN7,9,1)),"") ->  | AU7: =IF(AO7>0,IFERROR((AQ7*0.5*AO7),0)+IFERROR((AR7*1*AO7),0)+IFERROR((AS7*0.75*AO7),0)+IFERROR((AT7*0.25*AO7),0),0) -> 0.00 | AV7: =IF(AO7>0,VLOOKUP(AO7,oneHundred,2,1)&" ","") ->  | AW7: =IF(AO7>0,VLOOKUP(AP7,SDTurret,2,0)&" ","") ->  | AX7: =IF(AO7>0,"turret" & IF(AO7>1,"s "," "),"") ->  | AY7: =IF(AO7>0,"with a ","") ->  | AZ7: =IF(AND(AQ7<>"",AQ7>0),"PLx"&AQ7,"") ->  | BA7: =IF(AND(AR7<>"",AR7>0),"BLx"&AR7,"") ->  | BB7: =IF(AND(AS7<>"",AS7>0),"MRx"&AS7,"") ->  | BC7: =IF(AND(AT7<>"",AT7>0),"SCx"&AT7,"") ->  | BD7: =SUBSTITUTE(TRIM(AZ7&" "&BA7&" "&BB7&" "&BC7)," ",", ") ->  | BE7: =IF(AO7>0,".","") ->  | BI7: =_xlfn.CONCAT(AV7,AW7,AX7,AY7,BD7,BE7) ->  | BJ7: =IFERROR(SUBSTITUTE(BI7,","," and a",LEN(BI7)-LEN(SUBSTITUTE(BI7,",",""))),BI7) -> 
C8: Purchased | H8: 2 | O8: 27 | X8: 2 | Y8: 0 | Z8: 0 | AA8: 0 | AB8: 0 | AC8: 0 | AD8: 0 | AE8: G | AF8: G | AJ8: ="I8" -> I8 | AL8: =AL7+1 -> 2 | AM8: =IF(I8="","x",I8) & IF(J8="","xx","P"&J8) & IF(K8="","xx","B"&K8) & IF(L8="","xx","M"&L8) & IF(M8="","xx","S"&M8) -> xxxxxxxxx | AN8: =IFERROR(INDEX(turretList, MATCH(0,COUNTIF($AN$6:AN7, turretList), 0)),"") ->  | AO8: 0 | AP8: =IF(AO8>0,LEFT(AN8,1),"") ->  | AQ8: =IFERROR(VALUE(MID(AN8,3,1)),"") ->  | AR8: =IFERROR(VALUE(MID(AN8,5,1)),"") ->  | AS8: =IFERROR(VALUE(MID(AN8,7,1)),"") ->  | AT8: =IFERROR(VALUE(MID(AN8,9,1)),"") ->  | AU8: =IF(AO8>0,IFERROR((AQ8*0.5*AO8),0)+IFERROR((AR8*1*AO8),0)+IFERROR((AS8*0.75*AO8),0)+IFERROR((AT8*0.25*AO8),0),0) -> 0.00 | AX8: =IF(AO8>0,"turret" & IF(AO8>1,"s "," "),"") ->  | AY8: =IF(AO8>0,"with a ","") ->  | AZ8: =IF(AND(AQ8<>"",AQ8>0),"PLx"&AQ8,"") ->  | BA8: =IF(AND(AR8<>"",AR8>0),"BLx"&AR8,"") ->  | BB8: =IF(AND(AS8<>"",AS8>0),"MRx"&AS8,"") ->  | BC8: =IF(AND(AT8<>"",AT8>0),"SCx"&AT8,"") ->  | BD8: =SUBSTITUTE(TRIM(AZ8&" "&BA8&" "&BB8&" "&BC8)," ",", ") ->  | BE8: =IF(AO8>0,".","") ->  | BI8: =_xlfn.CONCAT(AV8,AW8,AX8,AY8,BD8,BE8) ->  | BJ8: =IFERROR(SUBSTITUTE(BI8,","," and a",LEN(BI8)-LEN(SUBSTITUTE(BI8,",",""))),BI8) -> 
C9: Pulse Laser (PL) | D9: =BUILD!AC87 -> 0 | H9: 3 | O9: 28 | X9: 3 | Y9: 0 | Z9: 0 | AA9: 0 | AB9: 0 | AC9: 0 | AD9: 0 | AE9: G | AF9: G | AJ9: ="I9" -> I9 | AL9: 3 | AM9: xxxxxxxxx | AN9: =IFERROR(INDEX(turretList, MATCH(0,COUNTIF($AN$6:AN8, turretList), 0)),"") ->  | AO9: 0 | AU9: 0.00
C10: Beam Laser (BL) | D10: =BUILD!AC88 -> 0 | H10: 4 | O10: 29 | X10: 4 | Y10: 0 | Z10: 0 | AA10: 0 | AB10: 0 | AC10: 0 | AD10: 0 | AE10: G | AF10: G | AJ10: ="I10" -> I10 | AL10: 4 | AM10: xxxxxxxxx | AN10: =IFERROR(INDEX(turretList, MATCH(0,COUNTIF($AN$6:AN9, turretList), 0)),"") ->  | AO10: 0 | AU10: 0.00
C11: Missile Rack (Ms) | D11: =BUILD!AC89 -> 0 | H11: 5 | O11: 30 | X11: 5 | Y11: 0 | Z11: 0 | AA11: 0 | AB11: 0 | AC11: 0 | AD11: 0 | AE11: G | AF11: G | AJ11: ="I11" -> I11 | AL11: 5 | AM11: xxxxxxxxx | AN11: =IFERROR(INDEX(turretList, MATCH(0,COUNTIF($AN$6:AN10, turretList), 0)),"") ->  | AO11: 0 | AU11: 0.00
C12: Sandcaster (Sc) | D12: =BUILD!AC90 -> 0 | H12: 6 | O12: 31 | X12: 6 | Y12: 0 | Z12: 0 | AA12: 0 | AB12: 0 | AC12: 0 | AD12: 0 | AE12: G | AF12: G | AJ12: ="I12" -> I12 | AL12: 6 | AM12: xxxxxxxxx | AN12: =IFERROR(INDEX(turretList, MATCH(0,COUNTIF($AN$6:AN11, turretList), 0)),"") ->  | AO12: 0 | AU12: 0.00
H13: 7 | O13: 32 | X13: 7 | Y13: 0 | Z13: 0 | AA13: 0 | AB13: 0 | AC13: 0 | AD13: 0 | AE13: G | AF13: G | AJ13: ="I13" -> I13 | AL13: 7 | AM13: xxxxxxxxx | AN13: =IFERROR(INDEX(turretList, MATCH(0,COUNTIF($AN$6:AN12, turretList), 0)),"") ->  | AO13: 0 | AU13: 0.00
C14: Checks | D14: Short | E14: Over | H14: 8 | O14: 33 | X14: 8 | Y14: 0 | Z14: 0 | AA14: 0 | AB14: 0 | AC14: 0 | AD14: 0 | AE14: G | AF14: G | AJ14: ="I14" -> I14 | AL14: 8 | AM14: xxxxxxxxx | AN14: =IFERROR(INDEX(turretList, MATCH(0,COUNTIF($AN$6:AN13, turretList), 0)),"") ->  | AO14: 0 | AU14: 0.00
C15: Single Turret | D15: =IF(COUNTIF(Y7:Y56,"S")<D7,D7-COUNTIF(Y7:Y56,"S"),"good") -> good | E15: =IF(COUNTIF(Y7:Y56,"S")>D7,COUNTIF(Y7:Y56,"S")-D7,"good") -> good | H15: 9 | O15: 34 | X15: 9 | Y15: 0 | Z15: 0 | AA15: 0 | AB15: 0 | AC15: 0 | AD15: 0 | AE15: G | AF15: G | AJ15: ="I15" -> I15 | AL15: 9 | AM15: xxxxxxxxx | AN15: =IFERROR(INDEX(turretList, MATCH(0,COUNTIF($AN$6:AN14, turretList), 0)),"") ->  | AO15: 0 | AU15: 0.00
C16: Double Turet | D16: =IF(COUNTIF(Y7:Y56,"D")<E7,E7-COUNTIF(Y7:Y56,"D"),"good") -> good | E16: =IF(COUNTIF(Y7:Y56,"D")>E7,COUNTIF(Y7:Y56,"D")-E7,"good") -> good | H16: 10 | O16: 35 | X16: 10 | Y16: 0 | Z16: 0 | AA16: 0 | AB16: 0 | AC16: 0 | AD16: 0 | AE16: G | AF16: G | AJ16: ="I16" -> I16 | AL16: 10 | AM16: xxxxxxxxx | AN16: =IFERROR(INDEX(turretList, MATCH(0,COUNTIF($AN$6:AN15, turretList), 0)),"") ->  | AO16: 0 | AU16: 0.00
C17: Triple Turret | D17: =IF(COUNTIF(Y7:Y56,"T")<F7,F7-COUNTIF(Y7:Y56,"T"),"good") -> good | E17: =IF(COUNTIF(I7:I31,"T")>F7,COUNTIF(I7:I31,"T")-F7,"good") -> good | H17: 11 | O17: 36 | X17: 11 | Y17: 0 | Z17: 0 | AA17: 0 | AB17: 0 | AC17: 0 | AD17: 0 | AE17: G | AF17: G | AJ17: ="I17" -> I17 | AL17: 11 | AM17: xxxxxxxxx | AN17: =IFERROR(INDEX(turretList, MATCH(0,COUNTIF($AN$6:AN16, turretList), 0)),"") ->  | AO17: 0 | AU17: 0.00
H18: 12 | O18: 37 | X18: 12 | Y18: 0 | Z18: 0 | AA18: 0 | AB18: 0 | AC18: 0 | AD18: 0 | AE18: G | AF18: G | AJ18: ="I18" -> I18 | AL18: 12 | AM18: xxxxxxxxx | AN18: =IFERROR(INDEX(turretList, MATCH(0,COUNTIF($AN$6:AN17, turretList), 0)),"") ->  | AO18: 0 | AU18: 0.00
C19: Checks | D19: Short | E19: Over | H19: 13 | O19: 38 | X19: 13 | Y19: 0 | Z19: 0 | AA19: 0 | AB19: 0 | AC19: 0 | AD19: 0 | AE19: G | AF19: G | AJ19: ="I19" -> I19 | AL19: 13 | AM19: xxxxxxxxx | AN19: =IFERROR(INDEX(turretList, MATCH(0,COUNTIF($AN$6:AN18, turretList), 0)),"") ->  | AO19: 0 | AU19: 0.00
C20: Pulse Laser | D20: =IF(SUM(Z7:Z56)<D9,D9-SUM(Z7:Z56),"good") -> good | E20: =IF(SUM(Z7:Z56)>D9,SUM(Z7:Z56)-D9,"good") -> good | H20: 14 | O20: 39 | X20: 14 | Y20: 0 | Z20: 0 | AA20: 0 | AB20: 0 | AC20: 0 | AD20: 0 | AE20: G | AF20: G | AJ20: ="I20" -> I20 | AL20: 14 | AM20: xxxxxxxxx | AN20: =IFERROR(INDEX(turretList, MATCH(0,COUNTIF($AN$6:AN19, turretList), 0)),"") ->  | AO20: 0 | AU20: 0.00
C21: Beam Laser | D21: =IF(SUM(AA7:AA56)<D10,D10-SUM(AA7:AA56),"good") -> good | E21: =IF(SUM(AA7:AA56)>D10,SUM(AA7:AA56)-D10,"good") -> good | H21: 15 | O21: 40 | X21: 15 | Y21: 0 | Z21: 0 | AA21: 0 | AB21: 0 | AC21: 0 | AD21: 0 | AE21: G | AF21: G | AJ21: ="I21" -> I21 | AL21: 15 | AM21: xxxxxxxxx | AN21: =IFERROR(INDEX(turretList, MATCH(0,COUNTIF($AN$6:AN20, turretList), 0)),"") ->  | AO21: 0 | AU21: 0.00
C22: Missile Rack | D22: =IF(SUM(AB7:AB56)<D11,D11-SUM(AB7:AB56),"good") -> good | E22: =IF(SUM(AB7:AB56)>D11,SUM(AB7:AB56)-D11,"good") -> good | H22: 16 | O22: 41 | X22: 16 | Y22: 0 | Z22: 0 | AA22: 0 | AB22: 0 | AC22: 0 | AD22: 0 | AE22: G | AF22: G | AJ22: ="I22" -> I22 | AL22: 16 | AM22: xxxxxxxxx | AN22: =IFERROR(INDEX(turretList, MATCH(0,COUNTIF($AN$6:AN21, turretList), 0)),"") ->  | AO22: 0 | AU22: 0.00
C23: Sandcaster | D23: =IF(SUM(AC7:AC56)<D12,D12-SUM(AC7:AC56),"good") -> good | E23: =IF(SUM(AC7:AC56)>D12,SUM(AC7:AC56)-D12,"good") -> good | H23: 17 | O23: 42 | X23: 17 | Y23: 0 | Z23: 0 | AA23: 0 | AB23: 0 | AC23: 0 | AD23: 0 | AE23: G | AF23: G | AJ23: ="I23" -> I23 | AL23: 17 | AM23: xxxxxxxxx | AN23: =IFERROR(INDEX(turretList, MATCH(0,COUNTIF($AN$6:AN22, turretList), 0)),"") ->  | AO23: 0 | AU23: 0.00
H24: 18 | O24: 43 | X24: 18 | Y24: 0 | Z24: 0 | AA24: 0 | AB24: 0 | AC24: 0 | AD24: 0 | AE24: G | AF24: G | AJ24: ="I24" -> I24 | AL24: 18 | AM24: xxxxxxxxx | AN24: =IFERROR(INDEX(turretList, MATCH(0,COUNTIF($AN$6:AN23, turretList), 0)),"") ->  | AO24: 0 | AU24: 0.00
B25: Click here to clear unavailable turrets | H25: 19 | O25: 44 | X25: 19 | Y25: 0 | Z25: 0 | AA25: 0 | AB25: 0 | AC25: 0 | AD25: 0 | AE25: G | AF25: G | AJ25: ="I25" -> I25 | AL25: 19 | AM25: xxxxxxxxx | AN25: =IFERROR(INDEX(turretList, MATCH(0,COUNTIF($AN$6:AN24, turretList), 0)),"") ->  | AO25: 0 | AU25: 0.00
H26: 20 | O26: 45 | X26: 20 | Y26: 0 | Z26: 0 | AA26: 0 | AB26: 0 | AC26: 0 | AD26: 0 | AE26: G | AF26: G | AJ26: ="I26" -> I26 | AL26: 20 | AM26: xxxxxxxxx | AN26: =IFERROR(INDEX(turretList, MATCH(0,COUNTIF($AN$6:AN25, turretList), 0)),"") ->  | AO26: 0 | AU26: 0.00
H27: 21 | O27: 46 | X27: 21 | Y27: 0 | Z27: 0 | AA27: 0 | AB27: 0 | AC27: 0 | AD27: 0 | AE27: G | AF27: G | AJ27: ="I27" -> I27 | AL27: 21 | AM27: xxxxxxxxx | AN27: =IFERROR(INDEX(turretList, MATCH(0,COUNTIF($AN$6:AN26, turretList), 0)),"") ->  | AO27: 0 | AU27: 0.00
B28: Click here to clear ALL turrets | H28: 22 | O28: 47 | X28: 22 | Y28: 0 | Z28: 0 | AA28: 0 | AB28: 0 | AC28: 0 | AD28: 0 | AE28: G | AF28: G | AJ28: ="I28" -> I28 | AL28: 22 | AM28: xxxxxxxxx | AN28: =IFERROR(INDEX(turretList, MATCH(0,COUNTIF($AN$6:AN27, turretList), 0)),"") ->  | AO28: 0 | AU28: 0.00
H29: 23 | O29: 48 | X29: 23 | Y29: 0 | Z29: 0 | AA29: 0 | AB29: 0 | AC29: 0 | AD29: 0 | AE29: G | AF29: G | AJ29: ="I29" -> I29 | AL29: 23 | AM29: xxxxxxxxx | AN29: =IFERROR(INDEX(turretList, MATCH(0,COUNTIF($AN$6:AN28, turretList), 0)),"") ->  | AO29: 0 | AU29: 0.00
H30: 24 | O30: 49 | X30: 24 | Y30: 0 | Z30: 0 | AA30: 0 | AB30: 0 | AC30: 0 | AD30: 0 | AE30: G | AF30: G | AJ30: ="I30" -> I30 | AL30: 24 | AM30: xxxxxxxxx | AN30: =IFERROR(INDEX(turretList, MATCH(0,COUNTIF($AN$6:AN29, turretList), 0)),"") ->  | AO30: 0 | AU30: 0.00
H31: 25 | O31: 50 | X31: 25 | Y31: 0 | Z31: 0 | AA31: 0 | AB31: 0 | AC31: 0 | AD31: 0 | AE31: G | AF31: G | AJ31: ="I31" -> I31 | AL31: 25 | AM31: xxxxxxxxx | AN31: =IFERROR(INDEX(turretList, MATCH(0,COUNTIF($AN$6:AN30, turretList), 0)),"") ->  | AO31: 0 | AU31: 0.00
X32: 26 | Y32: =P7 -> 0 | Z32: =Q7 -> 0 | AA32: =R7 -> 0 | AB32: =S7 -> 0 | AC32: =T7 -> 0 | AD32: 0 | AE32: G | AF32: G | AJ32: ="P7" -> P7 | AL32: 26 | AM32: =IF(P7="","x",P7) & IF(Q7="","xx","P"&Q7) & IF(R7="","xx","B"&R7) & IF(S7="","xx","M"&S7) & IF(T7="","xx","S"&T7) -> xxxxxxxxx | AN32: =IFERROR(INDEX(turretList, MATCH(0,COUNTIF($AN$6:AN31, turretList), 0)),"") ->  | AO32: 0 | AU32: 0.00
X33: 27 | Y33: 0 | Z33: 0 | AA33: 0 | AB33: 0 | AC33: 0 | AD33: 0 | AE33: G | AF33: G | AJ33: ="P8" -> P8 | AL33: 27 | AM33: =IF(P8="","x",P8) & IF(Q8="","xx","P"&Q8) & IF(R8="","xx","B"&R8) & IF(S8="","xx","M"&S8) & IF(T8="","xx","S"&T8) -> xxxxxxxxx | AN33: =IFERROR(INDEX(turretList, MATCH(0,COUNTIF($AN$6:AN32, turretList), 0)),"") ->  | AO33: 0 | AU33: 0.00
X34: 28 | Y34: 0 | Z34: 0 | AA34: 0 | AB34: 0 | AC34: 0 | AD34: 0 | AE34: G | AF34: G | AJ34: ="P9" -> P9 | AL34: 28 | AM34: xxxxxxxxx | AN34: =IFERROR(INDEX(turretList, MATCH(0,COUNTIF($AN$6:AN33, turretList), 0)),"") ->  | AO34: 0 | AU34: 0.00
X35: 29 | Y35: 0 | Z35: 0 | AA35: 0 | AB35: 0 | AC35: 0 | AD35: 0 | AE35: G | AF35: G | AJ35: ="P10" -> P10 | AL35: 29 | AM35: xxxxxxxxx | AN35: =IFERROR(INDEX(turretList, MATCH(0,COUNTIF($AN$6:AN34, turretList), 0)),"") ->  | AO35: 0 | AU35: 0.00
X36: 30 | Y36: 0 | Z36: 0 | AA36: 0 | AB36: 0 | AC36: 0 | AD36: 0 | AE36: G | AF36: G | AJ36: ="P11" -> P11 | AL36: 30 | AM36: xxxxxxxxx | AN36: =IFERROR(INDEX(turretList, MATCH(0,COUNTIF($AN$6:AN35, turretList), 0)),"") ->  | AO36: 0 | AU36: 0.00
X37: 31 | Y37: 0 | Z37: 0 | AA37: 0 | AB37: 0 | AC37: 0 | AD37: 0 | AE37: G | AF37: G | AJ37: ="P12" -> P12 | AL37: 31 | AM37: xxxxxxxxx | AN37: =IFERROR(INDEX(turretList, MATCH(0,COUNTIF($AN$6:AN36, turretList), 0)),"") ->  | AO37: 0 | AU37: 0.00
X38: 32 | Y38: 0 | Z38: 0 | AA38: 0 | AB38: 0 | AC38: 0 | AD38: 0 | AE38: G | AF38: G | AJ38: ="P13" -> P13 | AL38: 32 | AM38: xxxxxxxxx | AN38: =IFERROR(INDEX(turretList, MATCH(0,COUNTIF($AN$6:AN37, turretList), 0)),"") ->  | AO38: 0 | AU38: 0.00
X39: 33 | Y39: 0 | Z39: 0 | AA39: 0 | AB39: 0 | AC39: 0 | AD39: =SUM(Z39:AC39) -> 0 | AE39: =IFERROR(IF(AD39>VLOOKUP(Y39,checktsum,2,0),"F"&Y39,"G"),"G") -> G | AF39: =IFERROR(IF(AD39<VLOOKUP(Y39,checktsum,2,0),"F"&Y39,"G"),"G") -> G | AJ39: ="P14" -> P14 | AL39: 33 | AM39: xxxxxxxxx | AN39: =IFERROR(INDEX(turretList, MATCH(0,COUNTIF($AN$6:AN38, turretList), 0)),"") ->  | AO39: =IF(LEFT(AN39,1)<>"x",COUNTIF(turretList,AN39),0) -> 0 | AU39: 0.00 | AV39: =IF(AO39>0,VLOOKUP(AO39,oneHundred,2,1)&" ","") ->  | AW39: =IF(AO39>0,VLOOKUP(AP39,SDTurret,2,0)&" ","") -> 
X40: 34 | Y40: 0 | Z40: 0 | AA40: 0 | AB40: 0 | AC40: 0 | AD40: 0 | AE40: G | AF40: G | AJ40: ="P15" -> P15 | AL40: =AL39+1 -> 34 | AM40: xxxxxxxxx | AN40: =IFERROR(INDEX(turretList, MATCH(0,COUNTIF($AN$6:AN39, turretList), 0)),"") ->  | AO40: 0 | AU40: 0.00
X41: 35 | Y41: 0 | Z41: 0 | AA41: 0 | AB41: 0 | AC41: 0 | AD41: 0 | AE41: G | AF41: G | AJ41: ="P16" -> P16 | AL41: 35 | AM41: xxxxxxxxx | AN41: =IFERROR(INDEX(turretList, MATCH(0,COUNTIF($AN$6:AN40, turretList), 0)),"") ->  | AO41: 0 | AU41: 0.00
X42: 36 | Y42: 0 | Z42: 0 | AA42: 0 | AB42: 0 | AC42: 0 | AD42: 0 | AE42: G | AF42: G | AJ42: ="P17" -> P17 | AL42: 36 | AM42: xxxxxxxxx | AN42: =IFERROR(INDEX(turretList, MATCH(0,COUNTIF($AN$6:AN41, turretList), 0)),"") ->  | AO42: 0 | AU42: 0.00
X43: 37 | Y43: 0 | Z43: 0 | AA43: 0 | AB43: 0 | AC43: 0 | AD43: 0 | AE43: G | AF43: G | AJ43: ="P18" -> P18 | AL43: 37 | AM43: xxxxxxxxx | AN43: =IFERROR(INDEX(turretList, MATCH(0,COUNTIF($AN$6:AN42, turretList), 0)),"") ->  | AO43: 0 | AU43: 0.00
X44: 38 | Y44: 0 | Z44: 0 | AA44: 0 | AB44: 0 | AC44: 0 | AD44: 0 | AE44: G | AF44: G | AJ44: ="P19" -> P19 | AL44: 38 | AM44: xxxxxxxxx | AN44: =IFERROR(INDEX(turretList, MATCH(0,COUNTIF($AN$6:AN43, turretList), 0)),"") ->  | AO44: 0 | AU44: 0.00
X45: 39 | Y45: 0 | Z45: 0 | AA45: 0 | AB45: 0 | AC45: 0 | AD45: 0 | AE45: G | AF45: G | AJ45: ="P20" -> P20 | AL45: 39 | AM45: xxxxxxxxx | AN45: =IFERROR(INDEX(turretList, MATCH(0,COUNTIF($AN$6:AN44, turretList), 0)),"") ->  | AO45: 0 | AU45: 0.00
X46: 40 | Y46: 0 | Z46: 0 | AA46: 0 | AB46: 0 | AC46: 0 | AD46: 0 | AE46: G | AF46: G | AJ46: ="P21" -> P21 | AL46: 40 | AM46: xxxxxxxxx | AN46: =IFERROR(INDEX(turretList, MATCH(0,COUNTIF($AN$6:AN45, turretList), 0)),"") ->  | AO46: 0 | AU46: 0.00
X47: 41 | Y47: 0 | Z47: 0 | AA47: 0 | AB47: 0 | AC47: 0 | AD47: 0 | AE47: G | AF47: G | AJ47: ="P22" -> P22 | AL47: 41 | AM47: xxxxxxxxx | AN47: =IFERROR(INDEX(turretList, MATCH(0,COUNTIF($AN$6:AN46, turretList), 0)),"") ->  | AO47: 0 | AU47: 0.00
X48: 42 | Y48: 0 | Z48: 0 | AA48: 0 | AB48: 0 | AC48: 0 | AD48: 0 | AE48: G | AF48: G | AJ48: ="P23" -> P23 | AL48: 42 | AM48: xxxxxxxxx | AN48: =IFERROR(INDEX(turretList, MATCH(0,COUNTIF($AN$6:AN47, turretList), 0)),"") ->  | AO48: 0 | AU48: 0.00
X49: 43 | Y49: 0 | Z49: 0 | AA49: 0 | AB49: 0 | AC49: 0 | AD49: 0 | AE49: G | AF49: G | AJ49: ="P24" -> P24 | AL49: 43 | AM49: xxxxxxxxx | AN49: =IFERROR(INDEX(turretList, MATCH(0,COUNTIF($AN$6:AN48, turretList), 0)),"") ->  | AO49: 0 | AU49: 0.00
X50: 44 | Y50: 0 | Z50: 0 | AA50: 0 | AB50: 0 | AC50: 0 | AD50: 0 | AE50: G | AF50: G | AJ50: ="P25" -> P25 | AL50: 44 | AM50: xxxxxxxxx | AN50: =IFERROR(INDEX(turretList, MATCH(0,COUNTIF($AN$6:AN49, turretList), 0)),"") ->  | AO50: 0 | AU50: 0.00
X51: 45 | Y51: 0 | Z51: 0 | AA51: 0 | AB51: 0 | AC51: 0 | AD51: 0 | AE51: G | AF51: G | AJ51: ="P26" -> P26 | AL51: 45 | AM51: xxxxxxxxx | AN51: =IFERROR(INDEX(turretList, MATCH(0,COUNTIF($AN$6:AN50, turretList), 0)),"") ->  | AO51: 0 | AU51: 0.00
X52: 46 | Y52: 0 | Z52: 0 | AA52: 0 | AB52: 0 | AC52: 0 | AD52: 0 | AE52: G | AF52: G | AJ52: ="P27" -> P27 | AL52: 46 | AM52: xxxxxxxxx | AN52: =IFERROR(INDEX(turretList, MATCH(0,COUNTIF($AN$6:AN51, turretList), 0)),"") ->  | AO52: 0 | AU52: 0.00
X53: 47 | Y53: 0 | Z53: 0 | AA53: 0 | AB53: 0 | AC53: 0 | AD53: 0 | AE53: G | AF53: G | AJ53: ="P28" -> P28 | AL53: 47 | AM53: xxxxxxxxx | AN53: =IFERROR(INDEX(turretList, MATCH(0,COUNTIF($AN$6:AN52, turretList), 0)),"") ->  | AO53: 0 | AU53: 0.00
X54: 48 | Y54: 0 | Z54: 0 | AA54: 0 | AB54: 0 | AC54: 0 | AD54: 0 | AE54: G | AF54: G | AJ54: ="P29" -> P29 | AL54: 48 | AM54: xxxxxxxxx | AN54: =IFERROR(INDEX(turretList, MATCH(0,COUNTIF($AN$6:AN53, turretList), 0)),"") ->  | AO54: 0 | AU54: 0.00
X55: 49 | Y55: 0 | Z55: 0 | AA55: 0 | AB55: 0 | AC55: 0 | AD55: 0 | AE55: G | AF55: G | AJ55: ="P30" -> P30 | AL55: 49 | AM55: xxxxxxxxx | AN55: =IFERROR(INDEX(turretList, MATCH(0,COUNTIF($AN$6:AN54, turretList), 0)),"") ->  | AO55: 0 | AU55: 0.00
X56: 50 | Y56: 0 | Z56: 0 | AA56: 0 | AB56: 0 | AC56: 0 | AD56: 0 | AE56: G | AF56: G | AJ56: ="P31" -> P31 | AL56: 50 | AM56: xxxxxxxxx | AN56: =IFERROR(INDEX(turretList, MATCH(0,COUNTIF($AN$6:AN55, turretList), 0)),"") ->  | AO56: 0 | AU56: 0.00

Sheet QUICKINFO
B1: Various unused rows in the ship description below will automatically hide themselves when you activate this sheet.
S2: HIDEROWS
B3: Ship Descriptive Name | C3: =BUILD!G2 -> ENTER SHIP DESCRIPTIVE NAME | H3: Build | R3: Yes | S3: =IF(R3="Yes",TRUE,FALSE) -> TRUE
B4: Type | C4: =BUILD!AG2 -> TYPE CODE | H4: Time | I4: Tons | J4: MCr | R4: Yes | S4: TRUE
B5: Hull Tonnage | C5: =shipTonnage -> 1,100 | H5: =BUILD!AH6 -> 32 | J5: =BUILD!AG6 -> 110.00 | R5: =IF(J5>0,"Yes","No") -> Yes | S5: TRUE
B6: Jump Drive | C6: =letterJump -> J | G6: ="Performance: Jump-" & numJDrive -> Performance: Jump-1 | I6: =BUILD!AF16 -> 50.00 | J6: =BUILD!AG16 -> 90.00 | R6: =IF(J6>0,"Yes","No") -> Yes | S6: TRUE
B7: Maneuver Drive | C7: =letterManeuver -> J | G7: ="Performance: " & numMDrive &"-G acceleration" -> Performance: 1-G acceleration | I7: =BUILD!AF17 -> 17.00 | J7: =BUILD!AG17 -> 36.00 | R7: Yes | S7: TRUE
B8: Power Plant | C8: =letterPower -> J | I8: =BUILD!AF18 -> 28.00 | J8: =BUILD!AG18 -> 72.00 | R8: Yes | S8: TRUE
B9: Streamlined | C9: =streaming -> NO | J9: =BUILD!AG133 -> 0.00 | R9: =IF(J9>0,"Yes","No") -> No | S9: FALSE
B10: Fuel Tankage | E10: ="------Notes------" -> ------Notes------ | I10: Tons | J10: MCr | R10: Yes | S10: TRUE
B11: Power Plant and Maneuver | E11: =BUILD!AC25*4 -> 0 | F11: Weeks | I11: =BUILD!AF25 -> 0.00 | J11: na | R11: =IF(I11>0,"Yes","No") -> No | S11: FALSE
B12: Jump | E12: =BUILD!AC27 -> 0 | F12: =IF(E12<2,"Jump-"&numJDrive,"Jump-"&numJDrive&"'s") -> Jump-1 | I12: =BUILD!AF27 -> 0.00 | J12: na | R12: =IF(I12>0,"Yes","No") -> No | S12: FALSE
B13: Vehicle, Small Craft and Fuel Reserve | C13: also noted below | I13: =totalReserve -> 0.00 | J13: na | R13: =IF(I13>0,"Yes","No") -> No | S13: FALSE
I14: Tons | J14: MCr | R14: Yes | S14: TRUE
B15: Standard Bridge | E15: Capacity | F15: TL | G15: MCredit | I15: =BUILD!AF35 -> 22.00 | J15: =BUILD!AG35 -> 5.50 | R15: Yes | S15: TRUE
B16: Computer | C16: ="Model/"&selectedModel -> Model/1 | E16: =BUILD!AH40 -> 2 / 4 | F16: =BUILD!AH41 -> 5 | G16: =BUILD!AH42 -> 1.00 | I16: =BUILD!AF38 -> 1.00 | J16: =BUILD!AG38 -> 2.00 | R16: Yes | S16: TRUE
B17: Accomodations and Accessories | I17: Tons | J17: MCr | R17: =IF(COUNTIF(R18:R28,"Yes")=0,"No","Yes") -> No | S17: FALSE
B18: ="Stateroom" & IF(C18>1,"s","") -> Stateroom | C18: =stateRooms -> 0 | I18: =BUILD!AF66 -> 0.00 | J18: =BUILD!AG66 -> 0.00 | R18: =IF(I18>0,"Yes","No") -> No | S18: FALSE
B19: ="Low Berth" & IF(C19>1,"s","") -> Low Berth | C19: =lowBerths -> 0 | I19: =BUILD!AF67 -> 0.00 | J19: =BUILD!AG67 -> 0.00 | R19: =IF(I19>0,"Yes","No") -> No | S19: FALSE
B20: ="Emergency Low Berth" & IF(C20>1,"s","") -> Emergency Low Berth | C20: =emlowBerths -> 0 | I20: =BUILD!AF68 -> 0.00 | J20: =BUILD!AG68 -> 0.00 | R20: No | S20: FALSE
B21: ="Small Craft Stateroom" & IF(C21>1,"s","") -> Small Craft Stateroom | C21: =smallStaterooms -> 0 | I21: =BUILD!AF69 -> 0.00 | J21: =BUILD!AG69 -> 0.00 | R21: No | S21: FALSE
B22: ="Small Craft Couch" & IF(C22>1,"es","") -> Small Craft Couch | C22: =smallCouches -> 0 | I22: =BUILD!AF70 -> 0.00 | J22: =BUILD!AG70 -> 0.00 | R22: No | S22: FALSE
B23: ="Morse Hyper/13" & IF(C23>1,"'s","") -> Morse Hyper/13 | C23: =morse13 -> 0 | I23: =BUILD!AF71 -> 0.00 | J23: =BUILD!AG71 -> 0.00 | R23: No | S23: FALSE
B24: ="Morse Hyper/14" & IF(C24>1,"'s","") -> Morse Hyper/14 | C24: =morse14 -> 0 | I24: =BUILD!AF72 -> 0.00 | J24: =BUILD!AG72 -> 0.00 | R24: No | S24: FALSE
B25: ="Morse Hyper/15" & IF(C25>1,"'s","") -> Morse Hyper/15 | C25: =morse15 -> 0 | I25: =BUILD!AF73 -> 0.00 | J25: =BUILD!AG73 -> 0.00 | R25: No | S25: FALSE
B26: ="Morse Hyper/13 (core)" & IF(C26>1,"'s","") -> Morse Hyper/13 (core) | C26: =mCore13 -> 0 | I26: =BUILD!AF74 -> 0.00 | J26: =BUILD!AG74 -> 0.00 | R26: No | S26: FALSE
B27: ="Morse Hyper/14 (core)" & IF(C27>1,"'s","") -> Morse Hyper/14 (core) | C27: =mCore14 -> 0 | I27: =BUILD!AF75 -> 0.00 | J27: =BUILD!AG75 -> 0.00 | R27: No | S27: FALSE
B28: ="Morse Hyper/15 (core)" & IF(C28>1,"'s","") -> Morse Hyper/15 (core) | C28: =mCore15 -> 0 | I28: =BUILD!AF76 -> 0.00 | J28: =BUILD!AG76 -> 0.00 | R28: No | S28: FALSE
B29: Armaments | I29: Tons | J29: MCr | R29: =IF(COUNTIF(R30:R35,"Yes")=0,"No","Yes") -> No | S29: FALSE
B30: Hardpoints: | C30: =hardpointsOn &" of " & maxHardpoints -> 0 of 11 | J30: =BUILD!AG82 -> 0.00 | R30: =IF(J30>0,"Yes","No") -> No | S30: FALSE
B31: Fire Control | C31: =firecontrolOn -> 0 | I31: =BUILD!AF83 -> 0.00 | J31: na | R31: =IF(I31>0,"Yes","No") -> No | S31: FALSE
B32: Single, Double, Triple Turrets | C32: =sinTurret &"s / "&duoTurret&"d / "&triTurret & "t" -> 0s / 0d / 0t | J32: =SUM(BUILD!AG84:AG86) -> 0.00 | R32: =IF(J32>0,"Yes","No") -> No | S32: FALSE
B33: Weapons | D33: ="PL = "&BUILD!AC87 -> PL = 0 | E33: ="BL = "&BUILD!AC88 -> BL = 0 | F33: ="MR = "&BUILD!AC89 -> MR = 0 | G33: ="SC = "&BUILD!AC90 -> SC = 0 | J33: =SUM(BUILD!AG87:AG90) -> 0.00 | R33: =IF(J33>0,"Yes","No") -> No | S33: FALSE
B34: Extra missiles | C34: =BUILD!AB92 -> 0 | I34: =BUILD!AF92 -> 0.00 | J34: =BUILD!AG92 -> 0.00 | R34: =IF(J34>0,"Yes","No") -> No | S34: FALSE
B35: Extra sand cannisters | C35: =BUILD!AB93 -> 0 | I35: =BUILD!AF93 -> 0.00 | J35: =BUILD!AG93 -> 0.00 | R35: =IF(J35>0,"Yes","No") -> No | S35: FALSE
B36: ="Unique Turret Group ID" -> Unique Turret Group ID | F36: ="Turrets Installed: " & Tinstalled -> Turrets Installed: 0 | J36: MCr | R36: =IF(COUNTIF(R37:R86,"Yes")=0,"No","Yes") -> No | S36: =IF(R36="Yes",TRUE,FALSE) -> FALSE
B37: =P37 ->  | C37: =TURRETS!BJ7 ->  | J37: =TURRETS!AU7 -> 0.00 | P37: =IF(R37="Yes",SUM(Q37),"") ->  | Q37: =IF(R37="Yes",1,"") ->  | R37: =IF(J37>0,"Yes","No") -> No | S37: =IF(R37="Yes",TRUE,FALSE) -> FALSE
B38: =P38 ->  | C38: =TURRETS!BJ8 ->  | J38: =TURRETS!AU8 -> 0.00 | P38: =IF(R38="Yes",SUM($Q$37:Q38),"") ->  | Q38: =IF(R38="Yes",1,"") ->  | R38: =IF(J38>0,"Yes","No") -> No | S38: =IF(R38="Yes",TRUE,FALSE) -> FALSE
C39: =TURRETS!BJ9 ->  | J39: =TURRETS!AU9 -> 0.00 | P39: =IF(R39="Yes",SUM($Q$37:Q39),"") ->  | R39: No | S39: FALSE
C40: =TURRETS!BJ10 ->  | J40: =TURRETS!AU10 -> 0.00 | P40: =IF(R40="Yes",SUM($Q$37:Q40),"") ->  | R40: No | S40: FALSE
C41: =TURRETS!BJ11 ->  | J41: =TURRETS!AU11 -> 0.00 | P41: =IF(R41="Yes",SUM($Q$37:Q41),"") ->  | R41: No | S41: FALSE
C42: =TURRETS!BJ12 ->  | J42: =TURRETS!AU12 -> 0.00 | P42: =IF(R42="Yes",SUM($Q$37:Q42),"") ->  | R42: No | S42: FALSE
C43: =TURRETS!BJ13 ->  | J43: =TURRETS!AU13 -> 0.00 | P43: =IF(R43="Yes",SUM($Q$37:Q43),"") ->  | R43: No | S43: FALSE
C44: =TURRETS!BJ14 ->  | J44: =TURRETS!AU14 -> 0.00 | P44: =IF(R44="Yes",SUM($Q$37:Q44),"") ->  | R44: No | S44: FALSE
C45: =TURRETS!BJ15 ->  | J45: =TURRETS!AU15 -> 0.00 | P45: =IF(R45="Yes",SUM($Q$37:Q45),"") ->  | R45: No | S45: FALSE
C46: =TURRETS!BJ16 ->  | J46: =TURRETS!AU16 -> 0.00 | P46: =IF(R46="Yes",SUM($Q$37:Q46),"") ->  | R46: No | S46: FALSE
C47: =TURRETS!BJ17 ->  | J47: =TURRETS!AU17 -> 0.00 | P47: =IF(R47="Yes",SUM($Q$37:Q47),"") ->  | R47: No | S47: FALSE
C48: =TURRETS!BJ18 ->  | J48: =TURRETS!AU18 -> 0.00 | P48: =IF(R48="Yes",SUM($Q$37:Q48),"") ->  | R48: No | S48: FALSE
C49: =TURRETS!BJ19 ->  | J49: =TURRETS!AU19 -> 0.00 | P49: =IF(R49="Yes",SUM($Q$37:Q49),"") ->  | R49: No | S49: FALSE
C50: =TURRETS!BJ20 ->  | J50: =TURRETS!AU20 -> 0.00 | P50: =IF(R50="Yes",SUM($Q$37:Q50),"") ->  | R50: No | S50: FALSE
C51: =TURRETS!BJ21 ->  | J51: =TURRETS!AU21 -> 0.00 | P51: =IF(R51="Yes",SUM($Q$37:Q51),"") ->  | R51: No | S51: FALSE
C52: =TURRETS!BJ22 ->  | J52: =TURRETS!AU22 -> 0.00 | P52: =IF(R52="Yes",SUM($Q$37:Q52),"") ->  | R52: No | S52: FALSE
C53: =TURRETS!BJ23 ->  | J53: =TURRETS!AU23 -> 0.00 | P53: =IF(R53="Yes",SUM($Q$37:Q53),"") ->  | R53: No | S53: FALSE
C54: =TURRETS!BJ24 ->  | J54: =TURRETS!AU24 -> 0.00 | P54: =IF(R54="Yes",SUM($Q$37:Q54),"") ->  | R54: No | S54: FALSE
C55: =TURRETS!BJ25 ->  | J55: =TURRETS!AU25 -> 0.00 | P55: =IF(R55="Yes",SUM($Q$37:Q55),"") ->  | R55: No | S55: FALSE
C56: =TURRETS!BJ26 ->  | J56: =TURRETS!AU26 -> 0.00 | P56: =IF(R56="Yes",SUM($Q$37:Q56),"") ->  | R56: No | S56: FALSE
C57: =TURRETS!BJ27 ->  | J57: =TURRETS!AU27 -> 0.00 | P57: =IF(R57="Yes",SUM($Q$37:Q57),"") ->  | R57: No | S57: FALSE
C58: =TURRETS!BJ28 ->  | J58: =TURRETS!AU28 -> 0.00 | P58: =IF(R58="Yes",SUM($Q$37:Q58),"") ->  | R58: No | S58: FALSE
C59: =TURRETS!BJ29 ->  | J59: =TURRETS!AU29 -> 0.00 | P59: =IF(R59="Yes",SUM($Q$37:Q59),"") ->  | R59: No | S59: FALSE
C60: =TURRETS!BJ30 ->  | J60: =TURRETS!AU30 -> 0.00 | P60: =IF(R60="Yes",SUM($Q$37:Q60),"") ->  | R60: No | S60: FALSE
C61: =TURRETS!BJ31 ->  | J61: =TURRETS!AU31 -> 0.00 | P61: =IF(R61="Yes",SUM($Q$37:Q61),"") ->  | R61: No | S61: FALSE
C62: =TURRETS!BJ32 ->  | J62: =TURRETS!AU32 -> 0.00 | P62: =IF(R62="Yes",SUM($Q$37:Q62),"") ->  | R62: No | S62: FALSE
C63: =TURRETS!BJ33 ->  | J63: =TURRETS!AU33 -> 0.00 | P63: =IF(R63="Yes",SUM($Q$37:Q63),"") ->  | R63: No | S63: FALSE
C64: =TURRETS!BJ34 ->  | J64: =TURRETS!AU34 -> 0.00 | P64: =IF(R64="Yes",SUM($Q$37:Q64),"") ->  | R64: No | S64: FALSE
C65: =TURRETS!BJ35 ->  | J65: =TURRETS!AU35 -> 0.00 | P65: =IF(R65="Yes",SUM($Q$37:Q65),"") ->  | R65: No | S65: FALSE
C66: =TURRETS!BJ36 ->  | J66: =TURRETS!AU36 -> 0.00 | P66: =IF(R66="Yes",SUM($Q$37:Q66),"") ->  | R66: No | S66: FALSE
C67: =TURRETS!BJ37 ->  | J67: =TURRETS!AU37 -> 0.00 | P67: =IF(R67="Yes",SUM($Q$37:Q67),"") ->  | R67: No | S67: FALSE
C68: =TURRETS!BJ38 ->  | J68: =TURRETS!AU38 -> 0.00 | P68: =IF(R68="Yes",SUM($Q$37:Q68),"") ->  | R68: No | S68: FALSE
C69: =TURRETS!BJ39 ->  | J69: =TURRETS!AU39 -> 0.00 | P69: =IF(R69="Yes",SUM($Q$37:Q69),"") ->  | R69: No | S69: FALSE
C70: =TURRETS!BJ40 ->  | J70: =TURRETS!AU40 -> 0.00 | P70: =IF(R70="Yes",SUM($Q$37:Q70),"") ->  | R70: No | S70: FALSE
C71: =TURRETS!BJ41 ->  | J71: =TURRETS!AU41 -> 0.00 | P71: =IF(R71="Yes",SUM($Q$37:Q71),"") ->  | R71: No | S71: FALSE
C72: =TURRETS!BJ42 ->  | J72: =TURRETS!AU42 -> 0.00 | P72: =IF(R72="Yes",SUM($Q$37:Q72),"") ->  | R72: No | S72: FALSE
C73: =TURRETS!BJ43 ->  | J73: =TURRETS!AU43 -> 0.00 | P73: =IF(R73="Yes",SUM($Q$37:Q73),"") ->  | R73: No | S73: FALSE
C74: =TURRETS!BJ44 ->  | J74: =TURRETS!AU44 -> 0.00 | P74: =IF(R74="Yes",SUM($Q$37:Q74),"") ->  | R74: No | S74: FALSE
C75: =TURRETS!BJ45 ->  | J75: =TURRETS!AU45 -> 0.00 | P75: =IF(R75="Yes",SUM($Q$37:Q75),"") ->  | R75: No | S75: FALSE
C76: =TURRETS!BJ46 ->  | J76: =TURRETS!AU46 -> 0.00 | P76: =IF(R76="Yes",SUM($Q$37:Q76),"") ->  | R76: No | S76: FALSE
C77: =TURRETS!BJ47 ->  | J77: =TURRETS!AU47 -> 0.00 | P77: =IF(R77="Yes",SUM($Q$37:Q77),"") ->  | R77: No | S77: FALSE
C78: =TURRETS!BJ48 ->  | J78: =TURRETS!AU48 -> 0.00 | P78: =IF(R78="Yes",SUM($Q$37:Q78),"") ->  | R78: No | S78: FALSE
C79: =TURRETS!BJ49 ->  | J79: =TURRETS!AU49 -> 0.00 | P79: =IF(R79="Yes",SUM($Q$37:Q79),"") ->  | R79: No | S79: FALSE
C80: =TURRETS!BJ50 ->  | J80: =TURRETS!AU50 -> 0.00 | P80: =IF(R80="Yes",SUM($Q$37:Q80),"") ->  | R80: No | S80: FALSE
C81: =TURRETS!BJ51 ->  | J81: =TURRETS!AU51 -> 0.00 | P81: =IF(R81="Yes",SUM($Q$37:Q81),"") ->  | R81: No | S81: FALSE
C82: =TURRETS!BJ52 ->  | J82: =TURRETS!AU52 -> 0.00 | P82: =IF(R82="Yes",SUM($Q$37:Q82),"") ->  | R82: No | S82: FALSE
C83: =TURRETS!BJ53 ->  | J83: =TURRETS!AU53 -> 0.00 | P83: =IF(R83="Yes",SUM($Q$37:Q83),"") ->  | R83: No | S83: FALSE
C84: =TURRETS!BJ54 ->  | J84: =TURRETS!AU54 -> 0.00 | P84: =IF(R84="Yes",SUM($Q$37:Q84),"") ->  | R84: No | S84: FALSE
C85: =TURRETS!BJ55 ->  | J85: =TURRETS!AU55 -> 0.00 | P85: =IF(R85="Yes",SUM($Q$37:Q85),"") ->  | R85: No | S85: FALSE
C86: =TURRETS!BJ56 ->  | J86: =TURRETS!AU56 -> 0.00 | P86: =IF(R86="Yes",SUM($Q$37:Q86),"") ->  | R86: No | S86: FALSE
B87: Small Craft and Vehicles | H87: Fuel Reserve Tons | I87: Tons | J87: MCr | R87: =IF(COUNTIF(R88:R104,"Yes")=0,"No","Yes") -> No | S87: FALSE
B88: ="ATV ( x " & BUILD!AC99 & " )" -> ATV ( x 0 ) | I88: =BUILD!AF99 -> 0.00 | J88: =BUILD!AG99 -> 0.00 | R88: =IF(I88>0,"Yes","No") -> No | S88: =IF(R88="Yes",TRUE,FALSE) -> FALSE
B89: ="Air/Raft ( x " & BUILD!AC100 & " )" -> Air/Raft ( x 0 ) | I89: =BUILD!AF100 -> 0.00 | J89: =BUILD!AG100 -> 0.00 | R89: =IF(I89>0,"Yes","No") -> No | S89: =IF(R89="Yes",TRUE,FALSE) -> FALSE
B90: ="Speeder ( x " & BUILD!AC101 & " )" -> Speeder ( x 0 ) | I90: =BUILD!AF101 -> 0.00 | J90: =BUILD!AG101 -> 0.00 | R90: No | S90: FALSE
B91: ="GCarrier ( x " & BUILD!AC102 & " )" -> GCarrier ( x 0 ) | I91: =BUILD!AF102 -> 0.00 | J91: =BUILD!AG102 -> 0.00 | R91: No | S91: FALSE
B92: ="Launch ( x " & BUILD!AC103 & " )" -> Launch ( x 0 ) | H92: =BUILD!AJ103 -> 0.00 | I92: =BUILD!AF103-BUILD!AJ103 -> 0.00 | J92: =BUILD!AG103 -> 0.00 | R92: =IF(OR(H92>0,I92>0),"Yes","No") -> No | S92: FALSE
B93: ="Ship's Boat ( x " & BUILD!AC104 & " )" -> Ship's Boat ( x 0 ) | H93: =BUILD!AJ104 -> 0.00 | I93: =BUILD!AF104-BUILD!AJ104 -> 0.00 | J93: =BUILD!AG104 -> 0.00 | R93: =IF(OR(H93>0,I93>0),"Yes","No") -> No | S93: FALSE
B94: ="Pinnace ( x " & BUILD!AC105 & " )" -> Pinnace ( x 0 ) | H94: =BUILD!AJ105 -> 0.00 | I94: =BUILD!AF105-BUILD!AJ105 -> 0.00 | J94: =BUILD!AG105 -> 0.00 | R94: No | S94: FALSE
B95: ="Cutter ( x " & BUILD!AC106 & " )" -> Cutter ( x 0 ) | H95: =BUILD!AJ107 -> 0.00 | I95: =BUILD!AF106-BUILD!AJ106 -> 0.00 | J95: =BUILD!AG106 -> 0.00 | R95: No | S95: FALSE
B96: ="Fuel Module ( x " & BUILD!AC107 & " )" -> Fuel Module ( x 0 ) | I96: =BUILD!AF107-BUILD!AJ107 -> 0.00 | J96: =BUILD!AG107 -> 0.00 | R96: =IF(I96>0,"Yes","No") -> No | S96: FALSE
B97: ="ATV Module ( x " & BUILD!AC108 & " )" -> ATV Module ( x 0 ) | I97: =BUILD!AF108 -> 0.00 | J97: =BUILD!AG108 -> 0.00 | R97: No | S97: FALSE
B98: ="Open Module ( x " & BUILD!AC109 & " )" -> Open Module ( x 0 ) | I98: =BUILD!AF109 -> 0.00 | J98: =BUILD!AG109 -> 0.00 | R98: No | S98: FALSE
B99: ="Provision for future modules ( x " & BUILD!AC110 & " )" -> Provision for future modules ( x 0 ) | I99: =BUILD!AF110 -> 0.00 | J99: =BUILD!AG110 -> 0.00 | R99: No | S99: FALSE
B100: ="Slow Boat ( x " & BUILD!AC111 & " )" -> Slow Boat ( x 0 ) | H100: =BUILD!AJ111 -> 0.00 | I100: =BUILD!AF111-BUILD!AJ111 -> 0.00 | J100: =BUILD!AG111 -> 0.00 | R100: =IF(OR(H100>0,I100>0),"Yes","No") -> No | S100: FALSE
B101: ="Slow Pinnace ( x " & BUILD!AC112 & " )" -> Slow Pinnace ( x 0 ) | H101: =BUILD!AJ112 -> 0.00 | I101: =BUILD!AF112-BUILD!AJ112 -> 0.00 | J101: =BUILD!AG112 -> 0.00 | R101: No | S101: FALSE
B102: ="Shuttle ( x " & BUILD!AC113 & " )" -> Shuttle ( x 0 ) | H102: =BUILD!AJ113 -> 0.00 | I102: =BUILD!AF113-BUILD!AJ113 -> 0.00 | J102: =BUILD!AG113 -> 0.00 | R102: No | S102: FALSE
B103: ="Fighter ( x " & BUILD!AC114 & " )" -> Fighter ( x 0 ) | H103: =BUILD!AJ114 -> 0.00 | I103: =BUILD!AF114-BUILD!AJ114 -> 0.00 | J103: =BUILD!AG114 -> 0.00 | R103: No | S103: FALSE
B104: Long Term Fuel Reserves | H104: =BUILD!AJ116 -> 0.00 | R104: =IF(H104>0,"Yes","No") -> No | S104: FALSE
B105: Cargo Bay | C105: Tonnage | I105: Tons | R105: =IF(COUNTIF(R106:R110,"Yes")=0,"No","Yes") -> No | S105: FALSE
B106: =IF(C106>0,"Bay #" & P106,"") ->  | C106: =BUILD!AA124 -> 0.00 | I106: =C106 -> 0.00 | P106: =IF(R106="Yes",SUM(Q106),"") ->  | Q106: =IF(R106>0,1,0) -> 1 | R106: =IF(C106>0,"Yes","No") -> No | S106: FALSE
B107: =IF(C107>0,"Bay #" & P107,"") ->  | C107: =BUILD!AA125 -> 0.00 | I107: =C107 -> 0.00 | P107: =IF(R107="Yes",SUM($Q$106:Q107),"") ->  | Q107: =IF(R107="Yes",1,"") ->  | R107: =IF(C107>0,"Yes","No") -> No | S107: FALSE
C108: =BUILD!AA126 -> 0.00 | I108: =C108 -> 0.00 | P108: =IF(R108="Yes",SUM($Q$106:Q108),"") ->  | R108: No | S108: FALSE
C109: =BUILD!AA127 -> 0.00 | I109: =C109 -> 0.00 | P109: =IF(R109="Yes",SUM($Q$106:Q109),"") ->  | R109: No | S109: FALSE
C110: =BUILD!AA128 -> 0.00 | I110: =C110 -> 0.00 | P110: =IF(R110="Yes",SUM($Q$106:Q110),"") ->  | R110: No | S110: FALSE
B111: Crew Position | C111: Staterooms | D111: Low Berths | F111: Occupancy | H111: ="Installed SR / LB = " & C18 & " / " & C19 -> Installed SR / LB = 0 / 0 | R111: =IF(COUNTIF(R112:R125,"Yes")=0,"No","Yes") -> No | S111: FALSE
B112: =BUILD!C142 & " ( x "&BUILD!E142 &" )" -> Captain ( x 0 ) | C112: =BUILD!W142 -> 0 | D112: =BUILD!AC142 -> 0 | F112: =BUILD!BG142 ->  | R112: =IF(OR(C112>0,D112>0),"Yes","No") -> No | S112: =IF(R112="Yes",TRUE,FALSE) -> FALSE
B113: =BUILD!C143 & " ( x "&BUILD!E143 &" )" -> Commanding Officer ( x 0 ) | C113: =BUILD!W143 -> 0 | D113: =BUILD!AC143 -> 0 | F113: =BUILD!BG143 ->  | R113: =IF(OR(C113>0,D113>0),"Yes","No") -> No | S113: =IF(R113="Yes",TRUE,FALSE) -> FALSE
B114: =BUILD!C144 & " ( x "&BUILD!E144 &" )" -> Executive Officer ( x 0 ) | C114: =BUILD!W144 -> 0 | D114: =BUILD!AC144 -> 0 | F114: =BUILD!BG144 ->  | R114: No | S114: FALSE
B115: =BUILD!C145 & " ( x "&BUILD!E145 &" )" -> Admin Rating ( x 0 ) | C115: =BUILD!W145 -> 0 | D115: =BUILD!AC145 -> 0 | F115: =BUILD!BG145 ->  | R115: No | S115: FALSE
B116: =BUILD!C146 & " ( x "&BUILD!E146 &" )" -> Crew Rating ( x 0 ) | C116: =BUILD!W146 -> 0 | D116: =BUILD!AC146 -> 0 | F116: =BUILD!BG146 ->  | R116: No | S116: FALSE
B117: =BUILD!C147 & " ( x "&BUILD!E147 &" )" -> Pilot ( x 0 ) | C117: =BUILD!W147 -> 0 | D117: =BUILD!AC147 -> 0 | F117: =BUILD!BG147 ->  | R117: No | S117: FALSE
B118: =BUILD!C148 & " ( x "&BUILD!E148 &" )" -> Navigator ( x 0 ) | C118: =BUILD!W148 -> 0 | D118: =BUILD!AC148 -> 0 | F118: =BUILD!BG148 ->  | R118: No | S118: FALSE
B119: =BUILD!C149 & " ( x "&BUILD!E149 &" )" -> Engineer ( x 0 ) | C119: =BUILD!W149 -> 0 | D119: =BUILD!AC149 -> 0 | F119: =BUILD!BG149 ->  | R119: No | S119: FALSE
B120: =BUILD!C150 & " ( x "&BUILD!E150 &" )" -> Steward ( x 0 ) | C120: =BUILD!W150 -> 0 | D120: =BUILD!AC150 -> 0 | F120: =BUILD!BG150 ->  | R120: No | S120: FALSE
B121: =BUILD!C151 & " ( x "&BUILD!E151 &" )" -> Medic ( x 0 ) | C121: =BUILD!W151 -> 0 | D121: =BUILD!AC151 -> 0 | F121: =BUILD!BG151 ->  | R121: No | S121: FALSE
B122: =BUILD!C152 & " ( x "&BUILD!E152 &" )" -> Gunner ( x 0 ) | C122: =BUILD!W152 -> 0 | D122: =BUILD!AC152 -> 0 | F122: =BUILD!BG152 ->  | R122: No | S122: FALSE
B123: =BUILD!C153 & " ( x "&BUILD!E153 &" )" -> Troop ( x 0 ) | C123: =BUILD!W153 -> 0 | D123: =BUILD!AC153 -> 0 | F123: =BUILD!BG153 ->  | R123: No | S123: FALSE
B124: =BUILD!C154 & " ( x "&BUILD!E154 &" )" -> Dedicated V/SC Pilot ( x 0 ) | C124: =BUILD!W154 -> 0 | D124: =BUILD!AC154 -> 0 | F124: =BUILD!BG154 ->  | R124: =IF(OR(C124>0,D124>0),"Yes","No") -> No | S124: FALSE
B125: =BUILD!C155 -> Unallocated Staterooms | C125: =BUILD!W155 -> 0 | D125: =BUILD!AC155 -> 0 | F125: =BUILD!BG155 ->  | R125: No | S125: FALSE
B126: Passengers | C126: Staterooms | D126: Low Berths | F126: Occupancy | H126: ="Recommended SR / LB = " & SUM(C112:C125)+SUM(C127:C130) &" / " & SUM(D112:D125)+SUM(D127:D130) -> Recommended SR / LB = 0 / 0 | R126: =IF(COUNTIF(R127:R130,"Yes")=0,"No","Yes") -> No | S126: FALSE
B127: Luxury High or Middle | C127: =BUILD!W156 -> 0 | F127: =BUILD!BG156 ->  | R127: No | S127: FALSE
B128: Standard High or Middle | C128: =BUILD!W157 -> 0 | F128: =BUILD!BG157 ->  | R128: No | S128: FALSE
B129: Economy High or Middle | C129: =BUILD!W158 -> 0 | F129: =BUILD!BG158 ->  | R129: No | S129: FALSE
B130: Low Passengers | D130: =BUILD!AC159 -> 0 | F130: =BUILD!BG159 ->  | R130: No | S130: FALSE
B131: =IF(SUM(C112:C130)<C18,"Overage of staterooms purchased",IF(SUM(C112:C130)>C18,"Shortage of staterooms purchased","Adequate staterooms purchased")) -> Adequate staterooms purchased | F131: =IF(BUILD!G161>0,"High/Medium Passengers with Double Occupancy = " & BUILD!G161 ) -> FALSE | R131: =IF(SUM(C112:C130)>0,"Yes","No") -> No | S131: FALSE
B132: =IF(SUM(D112:D130)<C19,"Overage of low berths purchased",IF(SUM(D112:D130)>C19,"Shortage of low berths purchased","Adequate low berths purchased")) -> Adequate low berths purchased | F132: =IF(SUM(BUILD!E156:E159)=0,"No passengers are normally carried","") -> No passengers are normally carried | R132: =IF(SUM(D112:D130)>0,"Yes","No") -> No | S132: FALSE
R133: =IF(SUM(C112:D130)>0,"Yes","No") -> No | S133: FALSE
B134: Summary of Ship Design | J134: MCr | R134: ="Yes" -> Yes | S134: TRUE
B135: ="Hull Tonnage = ( "&TEXT(shipTonnage,"#,000")&" tons )" -> Hull Tonnage = ( 1,100 tons ) | D135: ="Standard Hull Size = " & BUILD!AL12 -> Standard Hull Size = NO | H135: ="Base Cost" -> Base Cost | J135: =IF(DesignType="Custom Design",'BUILD TOTALS'!E21,'BUILD TOTALS'!E25) -> 315.5000 | R135: ="Yes" -> Yes | S135: TRUE
B136: ="Remaining Tonnage = ( " &TEXT(remainingTons,"#,##0")&" tons )" -> Remaining Tonnage = ( 982 tons ) | D136: =IF(standard="Yes","Design = Standard","Design = Custom") -> Design = Custom | I136: =IF(DesignType="Custom Design","Architect Fee","10% Discount") -> Architect Fee | J136: =IF(DesignType="Custom Design",'BUILD TOTALS'!E22,'BUILD TOTALS'!E26) -> 3.1550 | R136: Yes | S136: TRUE
B137: ="Build Time = ( " & BUILD!AH6 &" months )" -> Build Time = ( 32 months ) | I137: =IF(DesignType= "Custom Design",'BUILD TOTALS'!D23,'BUILD TOTALS'!D27) -> Total | J137: =IF(DesignType="Custom Design",'BUILD TOTALS'!E23,'BUILD TOTALS'!E27) -> 318.6550 | R137: Yes | S137: TRUE
B138: ="Streamlined = " & streaming -> Streamlined = NO | I138: =IF(DesignType="Custom Design","","Total") ->  | J138: =IF(DesignType="Custom Design","",'BUILD TOTALS'!E28) ->  | R138: Yes | S138: TRUE

Sheet SOFTWARE
D3: =BUILD!G2 & " ( type " & BUILD!AG2 & " )" -> ENTER SHIP DESCRIPTIVE NAME ( type TYPE CODE ) | V3: ="Computer Model/" & selectedModel -> Computer Model/1
D6: Routine | G6: Space | H6: MCr | K6: Defensive | N6: Space | O6: MCr | R6: Offensive | U6: Space | V6: MCr
D8: =BUILD!BI53 ->  | F8: Maneuver | G8: 1 | H8: 0.1 | K8: =BUILD!BI48 ->  | M8: Maneuver/evade 1 | N8: 1 | O8: 1.0 | R8: =BUILD!BI41 ->  | T8: Predict 1 | U8: 1 | V8: 2.0
D10: =BUILD!BI54 ->  | F10: Jump 1 | G10: 1 | H10: 0.1 | K10: =BUILD!BJ48 ->  | M10: Maneuver/evade 2 | N10: 2 | O10: 2.0 | R10: =BUILD!BJ41 ->  | T10: Predict 2 | U10: 2 | V10: 4.0
D12: =BUILD!BJ54 ->  | F12: Jump 2 | G12: 2 | H12: 0.3 | K12: =BUILD!BK48 ->  | M12: Maneuver/evade 3 | N12: 3 | O12: 3.0 | R12: =BUILD!BK41 ->  | T12: Predict 3 | U12: 1 | V12: 6.0
D14: =BUILD!BK54 ->  | F14: Jump 3 | G14: 2 | H14: 0.4 | K14: =BUILD!BL48 ->  | M14: Maneuver/evade 4 | N14: 4 | O14: 4.0 | R14: =BUILD!BL41 ->  | T14: Predict 4 | U14: 3 | V14: 8.0
D16: =BUILD!BL54 ->  | F16: Jump 4 | G16: 2 | H16: 0.5 | K16: =BUILD!BM48 ->  | M16: Maneuver/evade 5 | N16: 2 | O16: 5.0 | R16: =BUILD!BM41 ->  | T16: Predict 5 | U16: 2 | V16: 10.0
D18: =BUILD!BM54 ->  | F18: Jump 5 | G18: 2 | H18: 0.6 | K18: =BUILD!BN48 ->  | M18: Maneuver/evade 6 | N18: 3 | O18: 6.0 | R18: =BUILD!BI42 ->  | T18: Gunner Interact | U18: 1 | V18: 1.0
D20: =BUILD!BN54 ->  | F20: Jump 6 | G20: 2 | H20: 0.7 | K20: =BUILD!BI49 ->  | M20: Auto/evade | N20: 1 | O20: 0.5 | R20: =BUILD!BI43 ->  | T20: Target | U20: 1 | V20: 1.0
D22: =BUILD!BI55 ->  | F22: Navigation | G22: 1 | H22: 0.4 | K22: =BUILD!BI50 ->  | M22: Return Fire | N22: 1 | O22: 0.5 | R22: =BUILD!BI44 ->  | T22: Selective 1 | U22: 1 | V22: 0.5
D24: =BUILD!BI56 ->  | F24: Differentiate 1 | G24: 1 | H24: 0.5 | K24: =BUILD!BI51 ->  | M24: Anti-Missile | N24: 2 | O24: 1.0 | R24: =BUILD!BJ44 ->  | T24: Selective 2 | U24: 2 | V24: 0.8
D26: =BUILD!BJ56 ->  | F26: Differentiate 2 | G26: 2 | H26: 0.6 | K26: =BUILD!BI52 ->  | M26: ECM | N26: 3 | O26: 4.0 | R26: =BUILD!BK44 ->  | T26: Selective 3 | U26: 1 | V26: 1.0
D28: =BUILD!BK56 ->  | F28: Differentiate 3 | G28: 3 | H28: 0.7 | M28: ="TL = " & BUILD!AH41 -> TL = 5 | N28: Space | O28: MCr | R28: =BUILD!BJ45 ->  | T28: Multi-target 2 | U28: 1 | V28: 1.0
D30: =BUILD!BI57 ->  | F30: Generate | G30: 2 | H30: 0.8 | M30: ="Capacity = " & BUILD!AH40 -> Capacity = 2 / 4 | R30: =BUILD!BK45 ->  | T30: Multi-target 3 | U30: 2 | V30: 2.0
D32: =BUILD!BI58 ->  | F32: Anti-Hijack | G32: 1 | H32: 0.1 | M32: Total Space and Cost | N32: =SUM(BUILD!V41:X59) -> 0 | O32: =SUM(BUILD!Y41:AA59) -> 0.0 | R32: =BUILD!BL45 ->  | T32: Multi-target 4 | U32: 4 | V32: 3.0
D34: =BUILD!BI59 ->  | F34: Library | G34: 1 | H34: 0.3 | M34: Software Credit | O34: =BUILD!AH42 -> 1.0 | R34: =BUILD!BI46 ->  | T34: Launch | U34: 1 | V34: 2.0
M36: Final Cost | O36: =IF(O32-O34<0,0,O32-O34) -> 0.0 | R36: =BUILD!BI47 ->  | T36: Double Fire | U36: 4 | V36: 4.0
D39: Computer Programs (note those programs available)

Sheet INFORMATION (hidden)
H1: =TRIM(J3 & J4 & J5 & J6 & J7 & J8 & J9 & J10 & J11 & J12 & J13 &J14 & J15 & J16 & J17 & J19 & J20 & J21 ) -> 
B3: Free Trader (type A ): Using a 3200-ton hull, the Free Trader is an elementary interstellar merchant ship plying the space lanes and carrying cargo and passengers. It mounts jump drive-V, maneuver drive-V, and power plant-V, giving a performance of jump-1 and 1-G acceleration. Fuel tankage for 330 tons supports the power plant for 4 weeks and allows one jump-1. Adjacent to the bridge is a computer Model/1. There are ten staterooms and twenty low berths. There are thirty-two hardpoints and thirty-two tons allocated for fire control. Eleven single turrets are installed: one with a missile rack. Eleven double turrets are installed: one with beam lasers. Ten triple turrets are installed: one with pulse lasers, one with missile racks. Cargo capacity is 82 tons, divided into a single 82-ton bay. The hull is Streamlined. | D3: Descriptive Name | F3: Free Trader | H3: 1 | J3: =" " & dName & " (type " & dType & " ): " -> Free Trader (type A ):
D4: Type | F4: A | H4: 2 | J4: =" Using a " & shipTonnage & "-ton hull, the " & dName & " is " & dDuty & " " -> Using a 1100-ton hull, the Free Trader is an elementary interstellar merchant ship plying the space lanes and carrying cargo and passengers.
D5: Duties and Purpose | F5: an elementary interstellar merchant ship plying the space lanes and carrying cargo and passengers. | H5: 3 | I5: DRIVES | J5: =" It mounts jump drive-" & letterJump & ", maneuver drive-" & letterManeuver & ", and power plant-" & letterPower & ", giving a performance of jump-" & numJDrive & " and " & numMDrive & "-G acceleration. " -> It mounts jump drive-J, maneuver drive-J, and power plant-J, giving a performance of jump-1 and 1-G acceleration.
H6: 4 | I6: FUEL | J6: =" Fuel tankage for "&normFuelTankage&" tons supports the power plant for "&powerWeeks&" weeks and allows "&howmanyJumps&" jump-"&numJDrive&". " & IF(totalReserve>0,", and holds "&totalReserve&" tons in reserve for its small craft and long term operations.","") -> 
H7: 5 | I7: COMP | J7: =" Adjacent to the bridge is a computer Model/" & selectedModel & ". " -> Adjacent to the bridge is a computer Model/1.
H8: 6 | I8: ACC | J8: =" There are "&VLOOKUP(stateRooms,oneHundred,2,1)&" staterooms and " &VLOOKUP(lowBerths,oneHundred,2,1) & " low berths. " -> There are no staterooms and no low berths.
H9: 7 | I9: ACC | J9: =IF(emlowBerths=1," There is one emergency low berth. ",IF(emlowBerths>1," There are "& VLOOKUP(emlowBerths,oneHundred,2,1) &" emergency low berths. ","")) -> 
H10: 8 | I10: ACC | J10: =IF(smallStaterooms=1," There is one small craft stateroom. ",IF(smallStaterooms>1," There are "& VLOOKUP(smallStaterooms,oneHundred,2,1) &" small craft staterooms. ","")) -> 
H11: 9 | I11: ACC | J11: =IF(smallCouches=1," There is one small craft couch. ",IF(smallCouches>1," There are "& VLOOKUP(smallCouches,oneHundred,2,1) &" small craft couches. ","")) -> 
H12: 10 | I12: HP | J12: =" There are "&VLOOKUP(hardpointsOn,oneHundred,2,1)&" hardpoints and "&VLOOKUP(firecontrolOn,oneHundred,2,1)&" tons allocated for fire control. "&IF(totalturrets=0,"No weapons are mounted.","") -> There are no hardpoints and no tons allocated for fire control. No weapons are mounted.
H13: 11 | I13: S-Trt | J13: =IF(sinTurret>0," " & singleTText,"") -> 
H14: 12 | I14: D-Trt | J14: =IF(duoTurret>0," " & doubleTText,"") -> 
H15: 13 | I15: T-Trt | J15: =IF(triTurret>0," " & tripleTText,"") -> 
H16: 14 | I16: Vehicles
H17: 15 | I17: Vehicles | J17: =IF(totalVehicles>0,vehicleLIST,"") -> 
H18: 16
H19: 17 | I19: Cargo | J19: =IF(allCargo>0," Cargo capacity is " & allCargo & " tons, divided into " & IF(cargobays=1," ",IF(cargobays>1," several bays: ","")) & cargoList,"") -> 
H20: 18 | I20: Stream | J20: =" The hull is " & IF(streaming="NO","Unstreamlined","Streamlined.") -> The hull is Unstreamlined
H21: 19 | I21: Crew
H22: 20

Sheet BUILD TOTALS
D3: Tons | E3: Cost
B4: STEP 1 | D4: =shipTonnage -> 1100.000 | E4: =BUILD!AG6 -> 110.000
B5: STEP 2 | D5: =SUM(BUILD!AF16:AF18) -> 95.000 | E5: =SUM(BUILD!AG16:AG18) -> 198.000
B6: STEP 3 | D6: =SUM(BUILD!AF25:AF27) -> 0.000
B7: STEP 4 | D7: =SUM(BUILD!AF35:AF36) -> 22.000 | E7: =BUILD!AG35 -> 5.500
B8: STEP 5 | D8: =SUM(BUILD!AF38:AF40) -> 1.000 | E8: =BUILD!AG38+BUILD!AG59 -> 2.000
B9: STEP 6 | D9: =SUM(BUILD!AF66:AF76) -> 0.000 | E9: =SUM(BUILD!AG66:AG76) -> 0.000
B10: STEP 7 | D10: =SUM(BUILD!AF82:AF93) -> 0.000 | E10: =SUM(BUILD!AG82:AG93) -> 0.000
B11: STEP 8 | D11: =SUM(BUILD!AF99:AF119)+BUILD!AJ116 -> 0.000 | E11: =SUM(BUILD!AG99:AG119) -> 0.000
B12: STEP 9 | D12: =SUM(BUILD!AF124:AF128) -> 0.000
B13: STEP 10 | D13: =SUM(BUILD!AF133) -> 0.000 | E13: =BUILD!AG133 -> 0.000
D14: Remaining | E14: Total MCr
D15: =D4-SUM(D5:D13) -> 982.000 | E15: =E23 -> 318.6550 | G15: Custom Design, includes 1% Architect Fee
E16: =E28 -> 283.9501 | G16: Standard Design reflects 10% discount, plus 100Cr Plan Fee
B17: Standard Design | D17: =BUILD!AL8 -> NO
B18: Streamlining | D18: =BUILD!AL132 -> NO
D20: =IF(BUILD!AL8="YES","Standard Design","Custom Design") -> Custom Design
D21: Custom Design | E21: =SUM(E4:E13) -> 315.500 | G21: MCr | H21: Architect Perc.
D22: Architect Fee | E22: =(H22/100)*E21 -> 3.155 | G22: MCr | H22: =IF(BUILD!AL3="YES",1,IF(BUILD!AL5="YES",1.5,0)) -> 1.0
D23: Total | E23: =E21+E22 -> 318.655
D25: Standard Design | E25: =SUM(E4:E13) -> 315.500 | G25: MCr
D26: =BUILD!AF12 * 100 &"% Discount" -> 10% Discount | E26: =-1 * (BUILD!AF12*E25) -> -31.55 | G26: MCr
D27: Plan Fee | E27: =0.0001 -> 0.0001 | G27: MCr
D28: Total | E28: =E25+E26+E27 -> 283.950

Sheet BUILDDATA (hidden)
C2: BDTABLE | AM2: JMPTABLE | AU2: COMPTABLE
D3: Selected | E3: Value | F3: A | G3: B | H3: C | I3: D | J3: E | K3: F | L3: G | M3: H | N3: J | O3: K | P3: L | Q3: M | R3: N | S3: P | T3: Q | U3: R | V3: S | W3: T | X3: U | Y3: V | Z3: W | AA3: X | AB3: Y | AC3: Z | AD3: Time | AK3: Formatted | BC3: a pulse laser | BD3: pulse lasers
C4: 0 | D4: No | E4: =0 -> 0 | AN4: JDrive | AP4: MDrive | AR4: PPlant | AX4: Capacity | BC4: a beam laser | BD4: beam lasers
C5: 5 | D5: No | E5: =IF(D5="Yes",C5,"") ->  | AK5: =IF(D5="Yes","( "&C5&" )",C5) -> 5 | AN5: Mass | AO5: MCr | AP5: Mass | AQ5: MCr | AR5: Mass | AS5: MCr | AV5: Tons | AW5: MCr | AX5: A | AY5: B | AZ5: Tech | BA5: Bonus | BC5: a missile rack | BD5: missile racks
C6: 10 | D6: No | E6: =IF(D6="Yes",C6,"") ->  | AK6: =IF(D6="Yes","( "&C6&" )",C6) -> 10 | AM6: A | AN6: 10 | AO6: 10 | AP6: 1 | AQ6: 4 | AR6: 4 | AS6: 8 | AU6: 1 | AV6: 1 | AW6: 2 | AX6: 2 | AY6: 4 | AZ6: 5 | BA6: 1 | BC6: a sandcaster | BD6: sandcasters
C7: 15 | D7: No | AK7: 15 | AM7: B | AN7: 15 | AO7: 20 | AP7: 3 | AQ7: 8 | AR7: 7 | AS7: 16 | AU7: 1bis | AV7: 1 | AW7: 4 | AX7: 4 | AY7: 0 | AZ7: 6 | BA7: 1
C8: 20 | D8: No | AK8: 20 | AM8: C | AN8: 20 | AO8: 30 | AP8: 5 | AQ8: 12 | AR8: 10 | AS8: 24 | AU8: 2 | AV8: 2 | AW8: 9 | AX8: 3 | AY8: 6 | AZ8: 7 | BA8: 2
C9: 25 | D9: No | AK9: 25 | AM9: D | AN9: 25 | AO9: 40 | AP9: 7 | AQ9: 16 | AR9: 13 | AS9: 32 | AU9: 2bis | AV9: 2 | AW9: 18 | AX9: 6 | AY9: 0 | AZ9: 8 | BA9: 2
C10: 30 | D10: No | AK10: 30 | AM10: E | AN10: 30 | AO10: 50 | AP10: 9 | AQ10: 20 | AR10: 16 | AS10: 40 | AU10: 3 | AV10: 3 | AW10: 18 | AX10: 5 | AY10: 9 | AZ10: 9 | BA10: 3
C11: 35 | D11: No | AK11: 35 | AM11: F | AN11: 35 | AO11: 60 | AP11: 11 | AQ11: 24 | AR11: 19 | AS11: 48 | AU11: 4 | AV11: 4 | AW11: 30 | AX11: 8 | AY11: 15 | AZ11: 10 | BA11: 4
C12: 40 | D12: No | AK12: 40 | AM12: G | AN12: 40 | AO12: 70 | AP12: 13 | AQ12: 28 | AR12: 22 | AS12: 56 | AU12: 5 | AV12: 5 | AW12: 45 | AX12: 12 | AY12: 25 | AZ12: 11 | BA12: 5
C13: 45 | D13: No | AK13: 45 | AM13: H | AN13: 45 | AO13: 80 | AP13: 15 | AQ13: 32 | AR13: 25 | AS13: 64 | AU13: 6 | AV13: 7 | AW13: 55 | AX13: 15 | AY13: 35 | AZ13: 12 | BA13: 6
C14: 50 | D14: No | AK14: 50 | AM14: J | AN14: 50 | AO14: 90 | AP14: 17 | AQ14: 36 | AR14: 28 | AS14: 72 | AU14: 7 | AV14: 9 | AW14: 80 | AX14: 20 | AY14: 50 | AZ14: 13 | BA14: 7
C15: 55 | D15: No | AK15: 55 | AM15: K | AN15: 55 | AO15: 100 | AP15: 19 | AQ15: 40 | AR15: 31 | AS15: 80
C16: 60 | D16: No | AK16: 60 | AM16: L | AN16: 60 | AO16: 110 | AP16: 21 | AQ16: 44 | AR16: 34 | AS16: 88
C17: 65 | D17: No | AK17: 65 | AM17: M | AN17: 65 | AO17: 120 | AP17: 23 | AQ17: 48 | AR17: 37 | AS17: 96 | AU17: HULLTABLE
C18: 70 | D18: No | AK18: 70 | AM18: N | AN18: 70 | AO18: 130 | AP18: 25 | AQ18: 52 | AR18: 40 | AS18: 104 | AV18: MCr | AW18: Time
C19: 75 | D19: No | AK19: 75 | AM19: P | AN19: 75 | AO19: 140 | AP19: 27 | AQ19: 56 | AR19: 43 | AS19: 112 | AU19: 100 | AV19: 2 | AW19: 9
C20: 80 | D20: No | AK20: 80 | AM20: Q | AN20: 80 | AO20: 150 | AP20: 29 | AQ20: 60 | AR20: 46 | AS20: 120 | AU20: 200 | AV20: 8 | AW20: 11
C21: 85 | D21: No | AK21: 85 | AM21: R | AN21: 85 | AO21: 160 | AP21: 31 | AQ21: 64 | AR21: 49 | AS21: 128 | AU21: 400 | AV21: 16 | AW21: 14
C22: 90 | D22: No | AK22: 90 | AM22: S | AN22: 90 | AO22: 170 | AP22: 33 | AQ22: 68 | AR22: 52 | AS22: 136 | AU22: 600 | AV22: 48 | AW22: 22
C23: 95 | D23: No | AK23: 95 | AM23: T | AN23: 95 | AO23: 180 | AP23: 35 | AQ23: 72 | AR23: 55 | AS23: 144 | AU23: 800 | AV23: 80 | AW23: 25
C24: 100 | D24: Yes | E24: 100 | F24: 2 | G24: 4 | H24: 6 | AD24: 10 | AK24: ( 100 ) | AM24: U | AN24: 100 | AO24: 190 | AP24: 37 | AQ24: 76 | AR24: 58 | AS24: 152 | AU24: 1000 | AV24: 100 | AW24: 27
C25: 200 | D25: No | F25: 1 | G25: 2 | H25: 3 | I25: 4 | J25: 5 | K25: 6 | AD25: 12 | AK25: 200 | AM25: V | AN25: 105 | AO25: 200 | AP25: 39 | AQ25: 80 | AR25: 61 | AS25: 160
C26: 300 | D26: No | G26: 1 | H26: 1 | I26: 2 | J26: 2 | K26: 3 | L26: 3 | M26: 4 | N26: 4 | O26: 5 | P26: 5 | Q26: 6 | R26: 6 | AD26: 16 | AK26: 300 | AM26: W | AN26: 110 | AO26: 210 | AP26: 41 | AQ26: 84 | AR26: 64 | AS26: 168
C27: 400 | D27: No | G27: 1 | H27: 1 | I27: 2 | J27: 2 | K27: 3 | L27: 3 | M27: 4 | N27: 4 | O27: 5 | P27: 5 | Q27: 6 | R27: 6 | AD27: 16 | AK27: 400 | AM27: X | AN27: 115 | AO27: 220 | AP27: 43 | AQ27: 88 | AR27: 67 | AS27: 176
C28: 500 | D28: No | H28: 1 | I28: 1 | J28: 1 | K28: 2 | L28: 2 | M28: 2 | N28: 3 | O28: 3 | P28: 3 | Q28: 4 | R28: 4 | S28: 4 | T28: 5 | U28: 5 | V28: 5 | W28: 6 | X28: 6 | Y28: 6 | AD28: 24 | AK28: 500 | AM28: Y | AN28: 120 | AO28: 230 | AP28: 45 | AQ28: 92 | AR28: 70 | AS28: 184
C29: 600 | D29: No | H29: 1 | I29: 1 | J29: 1 | K29: 2 | L29: 2 | M29: 2 | N29: 3 | O29: 3 | P29: 3 | Q29: 4 | R29: 4 | S29: 4 | T29: 5 | U29: 5 | V29: 5 | W29: 6 | X29: 6 | Y29: 6 | AD29: 24 | AK29: 600 | AM29: Z | AN29: 125 | AO29: 240 | AP29: 47 | AQ29: 96 | AR29: 73 | AS29: 192
C30: 700 | D30: No | I30: 1 | J30: 1 | K30: 1 | L30: 1 | M30: 2 | N30: 2 | O30: 2 | P30: 2 | Q30: 3 | R30: 3 | S30: 3 | T30: 3 | U30: 4 | V30: 4 | W30: 4 | X30: 4 | Y30: 5 | Z30: 5 | AA30: 6 | AB30: 6 | AC30: 6 | AD30: 28 | AK30: 700
C31: 800 | D31: No | I31: 1 | J31: 1 | K31: 1 | L31: 1 | M31: 2 | N31: 2 | O31: 2 | P31: 2 | Q31: 3 | R31: 3 | S31: 3 | T31: 3 | U31: 4 | V31: 4 | W31: 4 | X31: 4 | Y31: 5 | Z31: 5 | AA31: 6 | AB31: 6 | AC31: 6 | AD31: 28 | AK31: 800 | AM31: JUMPTABLE | AW31: how many jumps | AX31: =VLOOKUP(totalJumps,JUMPTABLE,2,1) & " " & VLOOKUP(totalJumps,JUMPTABLE,3,1) -> 
C32: 900 | D32: No | J32: 1 | K32: 1 | L32: 1 | M32: 1 | N32: 1 | O32: 2 | P32: 2 | Q32: 2 | R32: 2 | S32: 2 | T32: 3 | U32: 3 | V32: 3 | W32: 3 | X32: 3 | Y32: 4 | Z32: 5 | AA32: 6 | AB32: 6 | AC32: 6 | AD32: 30 | AK32: 900 | AM32: 1 | AN32: one | AO32: ="" -> 
C33: 1000 | D33: Yes | E33: 1000 | J33: 1 | K33: 1 | L33: 1 | M33: 1 | N33: 1 | O33: 2 | P33: 2 | Q33: 2 | R33: 2 | S33: 2 | T33: 3 | U33: 3 | V33: 3 | W33: 3 | X33: 3 | Y33: 4 | Z33: 5 | AA33: 6 | AB33: 6 | AC33: 6 | AD33: 30 | AK33: ( 1000 ) | AM33: 2 | AN33: two | AO33: succesive
C34: 2000 | D34: No | N34: 1 | O34: 1 | P34: 1 | Q34: 1 | R34: 1 | S34: 1 | T34: 1 | U34: 1 | V34: 1 | W34: 1 | X34: 1 | Y34: 2 | Z34: 2 | AA34: 3 | AB34: 4 | AC34: 6 | AD34: 32 | AK34: 2000 | AM34: 3 | AN34: three | AO34: succesive
C35: 3000 | D35: No | T35: 1 | U35: 1 | V35: 1 | W35: 1 | X35: 1 | Y35: 1 | Z35: 1 | AA35: 2 | AB35: 2 | AC35: 4 | AD35: 34 | AK35: 3000 | AM35: 4 | AN35: four | AO35: succesive
C36: 4000 | D36: No | Y36: 1 | Z36: 1 | AA36: 1 | AB36: 2 | AC36: 3 | AD36: 35 | AK36: 4000 | AM36: 5 | AN36: five | AO36: succesive
C37: 5000 | D37: No | Z37: 1 | AA37: 1 | AB37: 1 | AC37: 2 | AD37: 36 | AK37: 5000 | AM37: 6 | AN37: six | AO37: succesive
C38: Total | E38: =SUM(E4:E37) -> 1100 | F38: =INDEX(F4:F37,MATCH(TRUE,C4:C37>=E38,0)) -> 0 | G38: =INDEX(G4:G37,MATCH(TRUE,C4:C37>=E38,0)) -> 0 | H38: =INDEX(H4:H37,MATCH(TRUE,C4:C37>=E38,0)) -> 0 | I38: =INDEX(I4:I37,MATCH(TRUE,C4:C37>=E38,0)) -> 0 | J38: =INDEX(J4:J37,MATCH(TRUE,C4:C37>=E38,0)) -> 0 | K38: =INDEX(K4:K37,MATCH(TRUE,C4:C37>=E38,0)) -> 0 | L38: =INDEX(L4:L37,MATCH(TRUE,C4:C37>=E38,0)) -> 0 | M38: =INDEX(M4:M37,MATCH(TRUE,C4:C37>=E38,0)) -> 0 | N38: =INDEX(N4:N37,MATCH(TRUE,C4:C37>=E38,0)) -> 1 | O38: =INDEX(O4:O37,MATCH(TRUE,C4:C37>=E38,0)) -> 1 | P38: =INDEX(P4:P37,MATCH(TRUE,C4:C37>=E38,0)) -> 1 | Q38: =INDEX(Q4:Q37,MATCH(TRUE,C4:C37>=E38,0)) -> 1 | R38: =INDEX(R4:R37,MATCH(TRUE,C4:C37>=E38,0)) -> 1 | S38: =INDEX(S4:S37,MATCH(TRUE,C4:C37>=E38,0)) -> 1 | T38: =INDEX(T4:T37,MATCH(TRUE,C4:C37>=E38,0)) -> 1 | U38: =INDEX(U4:U37,MATCH(TRUE,C4:C37>=E38,0)) -> 1 | V38: =INDEX(V4:V37,MATCH(TRUE,C4:C37>=E38,0)) -> 1 | W38: =INDEX(W4:W37,MATCH(TRUE,C4:C37>=E38,0)) -> 1 | X38: =INDEX(X4:X37,MATCH(TRUE,C4:C37>=E38,0)) -> 1 | Y38: =INDEX(Y4:Y37,MATCH(TRUE,C4:C37>=E38,0)) -> 2 | Z38: =INDEX(Z4:Z37,MATCH(TRUE,C4:C37>=E38,0)) -> 2 | AA38: =INDEX(AA4:AA37,MATCH(TRUE,C4:C37>=E38,0)) -> 3 | AB38: =INDEX(AB4:AB37,MATCH(TRUE,C4:C37>=E38,0)) -> 4 | AC38: =INDEX(AC4:AC37,MATCH(TRUE,C4:C37>=E38,0)) -> 6 | AD38: =INDEX(AD4:AD37,MATCH(TRUE,C4:C37>=E38,0)) -> 32 | AM38: 7 | AN38: seven | AO38: succesive
AM39: 8 | AN39: eight | AO39: succesive
AM40: 9 | AN40: nine | AO40: succesive
AM41: 10 | AN41: ten | AO41: succesive
AN44: oneHundred | AR44: countSDT
AN45: 0 | AO45: no | AR45: 1 | AS45: single
AN46: =AN45+1 -> 1 | AO46: one | AR46: 2 | AS46: dual
AN47: =AN46+1 -> 2 | AO47: two | AR47: 3 | AS47: triple
AN48: 3 | AO48: three
AN49: 4 | AO49: four
AN50: 5 | AO50: five
AN51: 6 | AO51: six
AN52: 7 | AO52: seven
AN53: 8 | AO53: eight
AN54: 9 | AO54: nine
AN55: 10 | AO55: ten
AN56: 11 | AO56: eleven
AN57: 12 | AO57: twelve
AN58: 13 | AO58: thirteen
AN59: 14 | AO59: fourteen
AN60: 15 | AO60: fifteen
AN61: 16 | AO61: sixteen
AN62: 17 | AO62: seventeen
AN63: 18 | AO63: eighteen
AN64: 19 | AO64: nineteen
AN65: 20 | AO65: twenty
AN66: 21 | AO66: twenty-one
AN67: 22 | AO67: twenty-two
AN68: 23 | AO68: twenty-three
AN69: 24 | AO69: twenty-four
AN70: 25 | AO70: twenty-five
AN71: 26 | AO71: twenty-six
AN72: 27 | AO72: twenty-seven
AN73: 28 | AO73: twenty-eight
AN74: 29 | AO74: twenty-nine
AN75: 30 | AO75: thirty
AN76: 31 | AO76: thirty-one
AN77: 32 | AO77: thirty-two
AN78: 33 | AO78: thirty-three
AN79: 34 | AO79: thirty-four
AN80: 35 | AO80: thirty-five
AN81: 36 | AO81: thirty-six
AN82: 37 | AO82: thirty-seven
AN83: 38 | AO83: thirty-eight
AN84: 39 | AO84: thirty-nine
AN85: 40 | AO85: forty
AN86: 41 | AO86: forty-one
AN87: 42 | AO87: forty-two
AN88: 43 | AO88: forty-three
AN89: 44 | AO89: forty-four
AN90: 45 | AO90: forty-five
AN91: 46 | AO91: forty-six
AN92: 47 | AO92: forty-seven
AN93: 48 | AO93: forty-eight
AN94: 49 | AO94: forty-nine
AN95: 50 | AO95: fifty
AN96: 51 | AO96: fifty-one
AN97: 52 | AO97: fifty-two
AN98: 53 | AO98: fifty-three
AN99: 54 | AO99: fifty-four
AN100: 55 | AO100: fifty-five
AN101: 56 | AO101: fifty-six
AN102: 57 | AO102: fifty-seven
AN103: 58 | AO103: fifty-eight
AN104: 59 | AO104: fifty-nine
AN105: 60 | AO105: sixty
AN106: 61 | AO106: sixty-one
AN107: 62 | AO107: sixty-two
AN108: 63 | AO108: sixty-three
AN109: 64 | AO109: sixty-four
AN110: 65 | AO110: sixty-five
AN111: =AN110+1 -> 66 | AO111: sixty-six
AN112: 67 | AO112: sixty-seven
AN113: 68 | AO113: sixty-eight
AN114: 69 | AO114: sixty-nine
AN115: 70 | AO115: seventy
AN116: 71 | AO116: seventy-one
AN117: 72 | AO117: seventy-two
AN118: 73 | AO118: seventy-three
AN119: 74 | AO119: seventy-four
AN120: 75 | AO120: seventy-five
AN121: 76 | AO121: seventy-six
AN122: 77 | AO122: seventy-seven
AN123: 78 | AO123: seventy-eight
AN124: 79 | AO124: seventy-nine
AN125: 80 | AO125: eighty
AN126: 81 | AO126: eighty-one
AN127: 82 | AO127: eighty-two
AN128: 83 | AO128: eighty-three
AN129: 84 | AO129: eighty-four
AN130: 85 | AO130: eighty-five
AN131: 86 | AO131: eighty-six
AN132: 87 | AO132: eighty-seven
AN133: 88 | AO133: eighty-eight
AN134: 89 | AO134: eighty-nine
AN135: 90 | AO135: ninety
AN136: 91 | AO136: ninety-one
AN137: 92 | AO137: ninety-two
AN138: 93 | AO138: ninety-three
AN139: 94 | AO139: ninety-four
AN140: 95 | AO140: ninety-five
AN141: 96 | AO141: ninety-six
AN142: 97 | AO142: ninety-seven
AN143: 98 | AO143: ninety-eight
AN144: 99 | AO144: ninety-nine
AN145: 100 | AO145: one-hundred
